Workbook

Sheet 1. Info
AB1: Algoma Power Inc.
AB2: Atikokan Hydro Inc.
AB3: Attawapiskat Power Corporation
AB4: Bluewater Power Distribution Corporation
AB5: Brantford Power Inc.
AB6: Burlington Hydro Inc.
AB7: Canadian Niagara Power Inc.
AB8: Centre Wellington Hydro Ltd.
AB9: Chapleau Public Utilities Corporation
AB10: COLLUS PowerStream Corp.
AB11: Cooperative Hydro Embrun Inc.
AB12: E.L.K. Energy Inc.
A13: Drop-down lists are shaded blue; Input cells are shaded green. | AB13: Energy + Inc.
AB14: Enersource Hydro Mississauga Inc.
C15: Utility Name | D15: Oshawa PUC Networks Inc. | AB15: Entegrus Powerlines Inc.
AB16: EnWin Utilities Ltd.
C17: Service Territory | D17: Oshawa, ON | AB17: Erie Thames Powerlines Corporation
AB18: Espanola Regional Hydro Distribution Corporation
C19: Assigned EB Number | D19: EB-2014-0101 | AB19: Essex Powerlines Corporation
AB20: Festival Hydro Inc.
C21: Name and Title | D21: David Savage | AB21: Fort Albany Power Corporation
AB22: Fort Frances Power Corporation
C23: Phone Number | D23: 905-723-4626 Ext.5278 | AB23: Greater Sudbury Hydro Inc.
AB24: Grimsby Power Inc.
C25: Email Address | D25: dsavage@opuc.on.ca | AB25: Guelph Hydro Electric Systems Inc.
AB26: Haldimand County Hydro Inc.
C27: Date | D27: 2017-06-26 | AB27: Halton Hills Hydro Inc.
AB28: Hearst Power Distribution Company Limited
C29: Last COS Re-based Year | D29: 2015 | AB29: Horizon Utilities Corporation
AB30: Hydro 2000 Inc.
AB31: Hydro Hawkesbury Inc.
AB32: Hydro One Brampton Networks Inc.
AB33: Hydro One Networks Inc.
AB34: Hydro One Remote Communities Inc.
AB35: Hydro Ottawa Limited
AB36: Innpower Corporation
AB37: Kashechewan Power Corporation
AB38: Kenora Hydro Electric Corporation Ltd.
AB39: Kingston Hydro Corporation
AB40: Kitchener-Wilmot Hydro Inc.
AB41: Lakefront Utilities Inc.
AB42: Lakeland Power Distribution Ltd.
AB43: London Hydro Inc.
AB44: Midland Power Utility Corporation
AB45: Milton Hydro Distribution Inc.
AB46: Newmarket-Tay Power Distribution Ltd.
AB47: Niagara Peninsula Energy Inc.
AB48: Niagara-on-the-Lake Hydro Inc.
AB49: North Bay Hydro Distribution Limited
AB50: Northern Ontario Wires Inc.
AB51: Oakville Hydro Electricity Distribution Inc.
AB52: Orangeville Hydro Limited
AB53: Orillia Power Distribution Corporation
AB54: Oshawa PUC Networks Inc.
AB55: Ottawa River Power Corporation
AB56: Peterborough Distribution Incorporated
AB57: PowerStream Inc.
AB58: PUC Distribution Inc.
AB59: Renfrew Hydro Inc.
AB60: Rideau St. Lawrence Distribution Inc.
AB61: Sioux Lookout Hydro Inc.
AB62: St. Thomas Energy Inc.
AB63: Thunder Bay Hydro Electricity Distribution Inc.
AB64: Tillsonburg Hydro Inc.
AB65: Toronto Hydro-Electric System Limited
AB66: Veridian Connections Inc.
AB67: Wasaga Distribution Inc.
AB68: Waterloo North Hydro Inc.
AB69: Welland Hydro-Electric System Corp.
AB70: Wellington North Power Inc.
AB71: West Coast Huron Energy Inc.
AB72: Westario Power Inc.
AB73: Whitby Hydro Electric Corporation
AB74: Woodstock Hydro Services Inc.

Sheet 2. Table of Contents
D20: 1. Info | I20: 6. Historical Wholesale
D22: 2. Table of Contents | I22: 7. Current Wholesale
D24: 3. Rate Classes | I24: 8. Forecast Wholesale
D26: 4. RRR Data | I26: 9. RTSR Rates to Forecast
D28: 5. UTRs and Sub-Transmission

Sheet 3. Rate Classes
C13: 1. Select the appropriate rate classes that appear on your most recent Board-Approved Tariff of Rates and Charges. 2. Enter the RTS Network and Connection Rate as it appears on the Tariff of Rates and Charges
C15: Rate Class | E15: Unit | G15: RTSR-Network | I15: RTSR-Connection
C17: Residential | E17: kWh | G17: 0.0074 | I17: 0.0062 | L17: =IF(OR(ISBLANK(C17), ISERROR(FIND("Choose", C17))=FALSE), 0, 1) -> 1 | M17: ="C" & ROW(C17) -> C17 | N17: =IF(OR(C17="General Service Intermediate Rate Class 1,000 To 4,999 kW (formerly General Service > 50 kW Customers)", C17="General Service Intermediate Rate Class 1,000 To 4,999 kW (formerly Large Use Customers)"), "x", "") ->  | W17: Choose Rate Class
C18: General Service Less Than 50 kW | E18: kWh | G18: 0.0069 | I18: 0.0057 | L18: 1 | M18: C18 | N18: =IF(OR(C18="General Service Intermediate Rate Class 1,000 To 4,999 kW (formerly General Service > 50 kW Customers)", C18="General Service Intermediate Rate Class 1,000 To 4,999 kW (formerly Large Use Customers)"), "x", "") ->  | W18: Residential
C19: General Service 50 to 999 kW | E19: kW | G19: 2.4961 | I19: 2.0069 | L19: 1 | M19: C19 | W19: Residential Regular
C20: General Service 50 to 999 kW - Interval Metered | E20: kW | G20: 3.1993 | I20: 2.5494 | L20: 1 | M20: C20 | W20: Residential Urban
C21: General Service 1,000 to 4,999 kW - Interval Meters | E21: kW | G21: 3.1993 | I21: 2.5494 | L21: 1 | M21: C21 | W21: Residential Urban Year-Round
C22: Large Use > 5000 kW | E22: kW | G22: 3.4089 | I22: 2.7817 | L22: 1 | M22: C22 | W22: Residential Suburban
C23: Unmetered Scattered Load | E23: kWh | G23: 0.0069 | I23: 0.0057 | L23: 1 | M23: C23 | W23: Residential Suburban Seasonal
C24: Sentinel Lighting | E24: kW | G24: 1.7217 | I24: 2.3559 | L24: 1 | M24: C24 | W24: Residential Suburban Year Round
C25: Street Lighting | E25: kW | G25: 1.6925 | I25: 2.316 | L25: 1 | M25: C25 | W25: Residential - Time of Use
C26: Choose Rate Class | L26: 0 | M26: C26 | W26: Residential - Hensall
C27: Choose Rate Class | L27: 0 | M27: C27 | W27: Residential – High Density [R1]
C28: Choose Rate Class | L28: 0 | M28: C28 | W28: Residential – Normal Density [R2]
C29: Choose Rate Class | L29: 0 | M29: C29 | W29: Seasonal Residential – High Density [R3]
C30: Choose Rate Class | L30: 0 | M30: C30 | W30: Seasonal Residential – Normal Density [R4]
C31: Choose Rate Class | L31: 0 | M31: C31 | W31: Residential – Urban [UR]
C32: Choose Rate Class | L32: 0 | M32: C32 | W32: General Service Less Than 50 kW
C33: Choose Rate Class | L33: 0 | M33: C33 | W33: General Service Less Than 50 kW – Single Phase energy-billed [G1]
C34: Choose Rate Class | L34: 0 | M34: C34 | W34: General Service Less Than 50 kW – Three Phase energy-billed [G3]
C35: Choose Rate Class | L35: 0 | M35: C35 | W35: General Service Less Than 50 kW – Transmission Class energy-billed [T]
C36: Choose Rate Class | L36: 0 | M36: C36 | W36: General Service Less Than 50 kW – Urban energy-billed [UG]
C37: Choose Rate Class | L37: 0 | M37: C37 | W37: Westport Sewage Treatment Plant
C38: Choose Rate Class | L38: 0 | M38: C38 | W38: Small Commercial and USL - per meter
N39: =COUNTIF(N17:N38, "x") -> 0 | W39: Small Commercial and USL - per connection
W40: Farms – Single Phase energy-billed [F1]
W41: General Service 50 to 499 kW
W42: General Service 50 to 699 kW
W43: General Service 50 to 999 kW
W44: General Service 50 to 999 kW - Interval Metered
W45: General Service 50 to 1,000 kW
W46: General Service 50 to 1,000 kW - Interval Meters
W47: General Service 50 to 1,000 kW - Non Interval Meters
W48: General Service 50 to 1,499 kW
W49: General Service 50 to 1,499 kW - Interval Metered
W50: General Service 50 to 2,499 kW
W51: General Service 50 to 2,999 kW
W52: General Service 50 to 2,999 kW - Time of Use
W53: General Service 50 to 4,999 kW
W54: General Service 50 to 4,999 kW – Interval Metered
W55: General Service 50 to 4,999 kW - Time of Use
W56: General Service 50 to 4,999 kW (CoGeneration)
W57: General Service 50 to 4,999 kW (formerly Time of Use)
W58: General Service 500 to 4,999 kW
W59: General Service 700 to 4,999 kW
W60: General Service 1,000 to 2,999 kW
W61: General Service 1,000 to 4,999 kW
W62: General Service 1,000 to 4,999 kW - Interval Meters
W63: General Service 1,000 To 4,999 kW (co-generation)
W64: General Service Greater Than 1,000 kW
W65: General Service Intermediate Rate Class 1,000 To 4,999 kW (formerly Large Use Customers)
W66: General Service Intermediate Rate Class 1,000 To 4,999 kW (formerly General Service > 50 kW Customers)
W67: General Service 1,500 to 4,999 kW
W68: General Service Equal To Or Greater Than 1,500 kW
W69: General Service Equal To Or Greater Than 1,500 kW - Interval Metered
W70: General Service Intermediate 1,000 To 4,999 kW
W71: General Service 2,500 to 4,999 kW
W72: General Service 3,000 to 4,999 kW
W73: General Service 3,000 to 4,999 kW - Interval Metered
W74: General Service 3,000 to 4,999 kW - Intermediate Use
W75: General Service 3,000 to 4,999 kW - Time of Use
W76: Intermediate With Self Generation
W77: General Service - Commercial
W78: General Service - Institutional
W79: Farms – Three Phase energy-billed [F3]
W80: Large Use
W81: Large Use - Regular
W82: Large Use > 5000 kW
W83: Large Use - 3TS
W84: Large Use - Ford Annex
W85: Unmetered Scattered Load
W86: Sentinel Lighting
W87: Street Lighting
W88: Embedded Distributor
W89: Low Voltage Wheeling Charge Rate
W90: Stand-By
W91: Standby Power
W92: Standby Power – INTERIM APPROVAL
W93: Standby Power - APPROVED ON AN INTERIM BASIS
W94: Standby - General Service 50 - 1,000 kW
W95: Standby Power General Service 50 to 1,499 kW
W96: Standby - General Service 1,000 - 5,000 kW
W97: Standby Power General Service 1,500 to 4,999 kW
W98: Standby - Large Use
W99: Standby Power General Service Large Use
W100: Standby Distribution Service

Sheet 4. RRR Data
B15: Rate Class | C15: Rate Description | D15: Unit | E15: Rate | F15: Non-Loss Adjusted Metered kWh | G15: Non-Loss Adjusted Metered kW | H15: Applicable Loss Factor eg: (1.0325) | I15: Loss Adjusted Billed kWh
B17: Residential | C17: RTSR - Network | D17: kWh | E17: 0.0074 | F17: 477527823 | H17: 1.0359 | I17: =F17*H17 -> 494671071.8
B18: Residential | C18: RTSR - Connection | D18: kWh | E18: 0.0062 | F18: 477527823 | H18: 1.0359 | I18: =F18*H18 -> 494671071.8
B19: General Service Less Than 50 kW | C19: RTSR - Network | D19: kWh | E19: 0.0069 | F19: 131950149 | H19: 1.0359 | I19: =F19*H19 -> 136687159.3
B20: General Service Less Than 50 kW | C20: RTSR - Connection | D20: kWh | E20: 0.0057 | F20: 131950149 | H20: 1.0359 | I20: =F20*H20 -> 136687159.3
B21: General Service 50 to 999 kW | C21: RTSR - Network | D21: kW | E21: 2.4961 | F21: 149397407 | G21: 406106
B22: General Service 50 to 999 kW | C22: RTSR - Connection | D22: kW | E22: 2.0069 | F22: 149397407 | G22: 406106
B23: General Service 50 to 999 kW - Interval Metered | C23: RTSR - Network | D23: kW | E23: 3.1993 | F23: 180090158 | G23: 438263
B24: General Service 50 to 999 kW - Interval Metered | C24: RTSR - Connection | D24: kW | E24: 2.5494 | F24: 180090158 | G24: 438263
B25: General Service 1,000 to 4,999 kW - Interval Meters | C25: RTSR - Network | D25: kW | E25: 3.1993 | F25: 83295747 | G25: 200065
B26: General Service 1,000 to 4,999 kW - Interval Meters | C26: RTSR - Connection | D26: kW | E26: 2.5494 | F26: 83295747 | G26: 200065
B27: Large Use > 5000 kW | C27: RTSR - Network | D27: kW | E27: 3.4089 | F27: 41438246 | G27: 94958
B28: Large Use > 5000 kW | C28: RTSR - Connection | D28: kW | E28: 2.7817 | F28: 41438246 | G28: 94958
B29: Unmetered Scattered Load | C29: RTSR - Network | D29: kWh | E29: 0.0069 | F29: 819338 | H29: 1.0359 | I29: =F29*H29 -> 848752.2342
B30: Unmetered Scattered Load | C30: RTSR - Connection | D30: kWh | E30: 0.0057 | F30: 819338 | H30: 1.0359 | I30: =F30*H30 -> 848752.2342
B31: Sentinel Lighting | C31: RTSR - Network | D31: kW | E31: 1.7217 | F31: 39745.85 | G31: 126
B32: Sentinel Lighting | C32: RTSR - Connection | D32: kW | E32: 2.3559 | F32: 39745.85 | G32: 126
B33: Street Lighting | C33: RTSR - Network | D33: kW | E33: 1.6925 | F33: 9356816.3 | G33: 26440
B34: Street Lighting | C34: RTSR - Connection | D34: kW | E34: 2.316 | F34: 9356816.3 | G34: 26440

Sheet 5. UTRs and Sub-Transmission
B18: Uniform Transmission Rates | C18: Unit | E18: 2015 | H18: 2016 | J18: 2017
B20: Rate Description | E20: Rate | H20: Rate | J20: Rate
B22: Network Service Rate | C22: kW | E22: 3.78 | H22: 3.66 | J22: 3.66
B24: Line Connection Service Rate | C24: kW | E24: 0.86 | H24: 0.87 | J24: 0.87
B26: Transformation Connection Service Rate | C26: kW | E26: 2 | H26: 2.02 | J26: 2.02
B29: Hydro One Sub-Transmission Rates | C29: Unit | E29: 2015 - 2016 | H29: 2016 | J29: 2017
E30: Jan - April 2015 | F30: May 2015 - Jan 2016 | H30: Feb - Dec 2016
B34: Rate Description | E34: Rate | H34: Rate | J34: Rate
B36: Network Service Rate | C36: kW | E36: 3.23 | F36: 3.4121 | H36: 3.3396 | J36: 3.3396
B38: Line Connection Service Rate | C38: kW | E38: 0.65 | F38: 0.7879 | H38: 0.7791 | J38: 0.7791
B40: Transformation Connection Service Rate | C40: kW | E40: 1.62 | F40: 1.8018 | H40: 1.7713 | J40: 1.7713
B42: Both Line and Transformation Connection Service Rate | C42: kW | E42: =E40+E38 -> 2.27 | F42: =SUM(F40,F38) -> 2.5897 | H42: =SUM(H40,H38) -> 2.5504 | J42: =SUM(J40,J38) -> 2.5504
B45: If needed, add extra host here. (I) | C45: Unit | E45: 2015 | H45: 2016 | J45: 2017
B49: Rate Description | E49: Rate | H49: Rate | J49: Rate
B51: Network Service Rate | C51: kW
B53: Line Connection Service Rate | C53: kW
B55: Transformation Connection Service Rate | C55: kW
B57: Both Line and Transformation Connection Service Rate | C57: kW | E57: =SUM(E53,E55) -> 0 | H57: =SUM(H53,H55) -> 0 | J57: =J55+J53 -> 0
B60: If needed, add extra host here. (II) | C60: Unit | E60: Effective January 1, 2014 | H60: Effective January 1, 2015 | J60: Effective January 1, 2016
B64: Rate Description | E64: Rate | H64: Rate | J64: Rate
B66: Network Service Rate | C66: kW
B68: Line Connection Service Rate | C68: kW
B70: Transformation Connection Service Rate | C70: kW
B72: Both Line and Transformation Connection Service Rate | C72: kW | E72: =SUM(E68,E70) -> 0 | H72: =SUM(H68,H70) -> 0 | J72: =J70+J68 -> 0
E74: Historical 2015 | H74: Current 2016 | J74: Forecast 2017
B75: Low Voltage Switchgear Credit (if applicable, enter as a negative value) | C75: $

Sheet 6. Historical Wholesale
B21: IESO | D21: Network | H21: Line Connection | L21: Transformation Connection | P21: Total Line
B22: Month | D22: Units Billed | E22: Rate | F22: Amount | H22: Units Billed | I22: Rate | J22: Amount | L22: Units Billed | M22: Rate | N22: Amount | P22: Amount
B24: January | D24: 185859 | E24: =IF(D24<>0,F24/D24,0) -> 3.66 | F24: 680243.94 | H24: 190664 | I24: =IF(H24<>0,J24/H24,0) -> 0.87 | J24: 165877.68 | L24: 190664 | M24: =IF(L24<>0,N24/L24,0) -> 2.02 | N24: 385141.28 | P24: =J24+N24 -> 551018.96
B25: February | D25: 184535 | E25: =IF(D25<>0,F25/D25,0) -> 3.66 | F25: 675398.1 | H25: 215113 | I25: =IF(H25<>0,J25/H25,0) -> 0.87 | J25: 187148.31 | L25: 215113 | M25: =IF(L25<>0,N25/L25,0) -> 2.02 | N25: 434528.26 | P25: 621676.57
B26: March | D26: 183297 | E26: 3.66 | F26: 670867.02 | H26: 216716 | I26: 0.87 | J26: 188542.92 | L26: 216716 | M26: 2.02 | N26: 437766.32 | P26: 626309.24
B27: April | D27: 158716 | E27: 3.66 | F27: 580900.56 | H27: 233736.6055 | I27: 0.8699626211 | J27: 203342.11 | L27: 233736.6055 | M27: 2.020037379 | N27: 472156.68 | P27: 675498.79
B28: May | D28: =F28/E27 -> 175477 | E28: 3.66 | F28: 642245.82 | H28: 249333 | I28: 0.87 | J28: 216919.71 | L28: 249333 | M28: 2.02 | N28: 503652.66 | P28: 720572.37
B29: June | D29: =F29/E28 -> 194917 | E29: 3.66 | F29: 713396.22 | H29: 209985 | I29: 0.87 | J29: 182686.95 | L29: 209985 | M29: 2.02 | N29: 424169.7 | P29: 606856.65
B30: July | D30: 213024 | E30: 3.66 | F30: 779667.84 | H30: 217295 | I30: 0.87 | J30: 189046.65 | L30: 217295 | M30: 2.02 | N30: 438935.9 | P30: 627982.55
B31: August | D31: 220213 | E31: 3.66 | F31: 805979.58 | H31: 223709 | I31: 0.87 | J31: 194626.83 | L31: 223709 | M31: 2.02 | N31: 451892.18 | P31: 646519.01
B32: September | D32: 220438 | E32: 3.66 | F32: 806803.08 | H32: 231690 | I32: 0.87 | J32: 201570.3 | L32: 231690 | M32: 2.02 | N32: 468013.8 | P32: 669584.1
B33: October | D33: 152350 | E33: 3.66 | F33: 557601 | H33: 152350 | I33: 0.87 | J33: 132544.5 | L33: 152350 | M33: 2.02 | N33: 307747 | P33: 440291.5
B34: November | D34: =F34/E33 -> 166620 | E34: 3.66 | F34: 609829.2 | H34: 183436 | I34: 0.87 | J34: 159589.32 | L34: 183436 | M34: 2.02 | N34: 370540.72 | P34: 530130.04
B35: December | D35: =F35/E34 -> 185788 | E35: 3.66 | F35: 679984.08 | H35: 188131 | I35: 0.87 | J35: 163673.97 | L35: 188131 | M35: 2.02 | N35: 380024.62 | P35: 543698.59
B37: Total | D37: =SUM(D24:D35) -> 2241234 | E37: =IF(D37<>0,F37/D37,0) -> 3.66 | F37: =SUM(F24:F35) -> 8202916.44 | H37: =SUM(H24:H35) -> 2512158.606 | I37: =IF(H37<>0,J37/H37,0) -> 0.8699965222 | J37: =SUM(J24:J35) -> 2185569.25 | L37: =SUM(L24:L35) -> 2512158.606 | M37: =IF(L37<>0,N37/L37,0) -> 2.020003478 | N37: =SUM(N24:N35) -> 5074569.12 | P37: =SUM(P24:P35) -> 7260138.37
B39: Hydro One | D39: Network | H39: Line Connection | L39: Transformation Connection | P39: Total Line
B41: Month | D41: Units Billed | E41: Rate | F41: Amount | H41: Units Billed | I41: Rate | J41: Amount | L41: Units Billed | M41: Rate | N41: Amount | P41: Amount
B43: January | E43: =IF(D43<>0,F43/D43,0) -> 0 | I43: =IF(H43<>0,J43/H43,0) -> 0 | M43: =IF(L43<>0,N43/L43,0) -> 0 | P43: =J43+N43 -> 0
B44: February | E44: =IF(D44<>0,F44/D44,0) -> 0 | I44: =IF(H44<>0,J44/H44,0) -> 0 | M44: =IF(L44<>0,N44/L44,0) -> 0 | P44: 0
B45: March | E45: 0 | I45: 0 | M45: 0 | P45: 0
B46: April | E46: 0 | I46: 0 | M46: 0 | P46: 0
B47: May | E47: 0 | I47: 0 | M47: 0 | P47: 0
B48: June | E48: 0 | I48: 0 | M48: 0 | P48: 0
B49: July | E49: 0 | I49: 0 | M49: 0 | P49: 0
B50: August | E50: 0 | I50: 0 | M50: 0 | P50: 0
B51: September | E51: 0 | I51: 0 | M51: 0 | P51: 0
B52: October | E52: 0 | I52: 0 | M52: 0 | P52: 0
B53: November | E53: 0 | I53: 0 | M53: 0 | P53: 0
B54: December | E54: 0 | I54: 0 | M54: 0 | P54: 0
B56: Total | D56: =SUM(D43:D54) -> 0 | E56: =IF(D56<>0,F56/D56,0) -> 0 | F56: =SUM(F43:F54) -> 0 | H56: =SUM(H43:H54) -> 0 | I56: =IF(H56<>0,J56/H56,0) -> 0 | J56: =SUM(J43:J54) -> 0 | L56: =SUM(L43:L54) -> 0 | M56: =IF(L56<>0,N56/L56,0) -> 0 | N56: =SUM(N43:N54) -> 0 | P56: =SUM(P43:P54) -> 0
B58: Add Extra Host Here (I) | D58: Network | H58: Line Connection | L58: Transformation Connection | P58: Total Line
B59: (if needed)
B60: Month | D60: Units Billed | E60: Rate | F60: Amount | H60: Units Billed | I60: Rate | J60: Amount | L60: Units Billed | M60: Rate | N60: Amount | P60: Amount
B62: January | E62: =IF(D62<>0,F62/D62,0) -> 0 | I62: =IF(H62<>0,J62/H62,0) -> 0 | M62: =IF(L62<>0,N62/L62,0) -> 0 | P62: =J62+N62 -> 0
B63: February | E63: 0 | I63: 0 | M63: 0 | P63: 0
B64: March | E64: 0 | I64: 0 | M64: 0 | P64: 0
B65: April | E65: 0 | I65: 0 | M65: 0 | P65: 0
B66: May | E66: 0 | I66: 0 | M66: 0 | P66: 0
B67: June | E67: 0 | I67: 0 | M67: 0 | P67: 0
B68: July | E68: 0 | I68: 0 | M68: 0 | P68: 0
B69: August | E69: 0 | I69: 0 | M69: 0 | P69: 0
B70: September | E70: 0 | I70: 0 | M70: 0 | P70: 0
B71: October | E71: 0 | I71: 0 | M71: 0 | P71: 0
B72: November | E72: 0 | I72: 0 | M72: 0 | P72: 0
B73: December | E73: 0 | I73: 0 | M73: 0 | P73: 0
B75: Total | D75: =SUM(D62:D73) -> 0 | E75: =IF(D75<>0,F75/D75,0) -> 0 | F75: =SUM(F62:F73) -> 0 | H75: =SUM(H62:H73) -> 0 | I75: =IF(H75<>0,J75/H75,0) -> 0 | J75: =SUM(J62:J73) -> 0 | L75: =SUM(L62:L73) -> 0 | M75: =IF(L75<>0,N75/L75,0) -> 0 | N75: =SUM(N62:N73) -> 0 | P75: =SUM(P62:P73) -> 0
B77: Add Extra Host Here (II) | D77: Network | H77: Line Connection | L77: Transformation Connection | P77: Total Line
B78: (if needed)
B79: Month | D79: Units Billed | E79: Rate | F79: Amount | H79: Units Billed | I79: Rate | J79: Amount | L79: Units Billed | M79: Rate | N79: Amount | P79: Amount
B81: January | E81: =IF(D81<>0,F81/D81,0) -> 0 | I81: =IF(H81<>0,J81/H81,0) -> 0 | M81: =IF(L81<>0,N81/L81,0) -> 0 | P81: =J81+N81 -> 0
B82: February | E82: 0 | I82: 0 | M82: 0 | P82: 0
B83: March | E83: 0 | I83: 0 | M83: 0 | P83: 0
B84: April | E84: 0 | I84: 0 | M84: 0 | P84: 0
B85: May | E85: 0 | I85: 0 | M85: 0 | P85: 0
B86: June | E86: 0 | I86: 0 | M86: 0 | P86: 0
B87: July | E87: 0 | I87: 0 | M87: 0 | P87: 0
B88: August | E88: 0 | I88: 0 | M88: 0 | P88: 0
B89: September | E89: 0 | I89: 0 | M89: 0 | P89: 0
B90: October | E90: 0 | I90: 0 | M90: 0 | P90: 0
B91: November | E91: 0 | I91: 0 | M91: 0 | P91: 0
B92: December | E92: 0 | I92: 0 | M92: 0 | P92: 0
B94: Total | D94: =SUM(D81:D92) -> 0 | E94: =IF(D94<>0,F94/D94,0) -> 0 | F94: =SUM(F81:F92) -> 0 | H94: =SUM(H81:H92) -> 0 | I94: =IF(H94<>0,J94/H94,0) -> 0 | J94: =SUM(J81:J92) -> 0 | L94: =SUM(L81:L92) -> 0 | M94: =IF(L94<>0,N94/L94,0) -> 0 | N94: =SUM(N81:N92) -> 0 | P94: =SUM(P81:P92) -> 0
B96: Total | D96: Network | H96: Line Connection | L96: Transformation Connection | P96: Total Line
B98: Month | D98: Units Billed | E98: Rate | F98: Amount | H98: Units Billed | I98: Rate | J98: Amount | L98: Units Billed | M98: Rate | N98: Amount | P98: Amount
B100: January | D100: =D24+D43+D62+D81 -> 185859 | E100: =IF(D100<>0,F100/D100,0) -> 3.66 | F100: =F24+F43+F62+F81 -> 680243.94 | H100: =H24+H43+H62+H81 -> 190664 | I100: =IF(H100<>0,J100/H100,0) -> 0.87 | J100: =J24+J43+J62+J81 -> 165877.68 | L100: =L24+L43+L62+L81 -> 190664 | M100: =IF(L100<>0,N100/L100,0) -> 2.02 | N100: =N24+N43+N62+N81 -> 385141.28 | P100: =J100+N100 -> 551018.96
B101: February | D101: =D25+D44+D63+D82 -> 184535 | E101: 3.66 | F101: =F25+F44+F63+F82 -> 675398.1 | H101: =H25+H44+H63+H82 -> 215113 | I101: 0.87 | J101: =J25+J44+J63+J82 -> 187148.31 | L101: =L25+L44+L63+L82 -> 215113 | M101: 2.02 | N101: =N25+N44+N63+N82 -> 434528.26 | P101: 621676.57
B102: March | D102: 183297 | E102: 3.66 | F102: 670867.02 | H102: 216716 | I102: 0.87 | J102: 188542.92 | L102: 216716 | M102: 2.02 | N102: 437766.32 | P102: 626309.24
B103: April | D103: 158716 | E103: 3.66 | F103: 580900.56 | H103: 233736.6055 | I103: 0.8699626211 | J103: 203342.11 | L103: 233736.6055 | M103: 2.020037379 | N103: 472156.68 | P103: 675498.79
B104: May | D104: 175477 | E104: 3.66 | F104: 642245.82 | H104: 249333 | I104: 0.87 | J104: 216919.71 | L104: 249333 | M104: 2.02 | N104: 503652.66 | P104: 720572.37
B105: June | D105: 194917 | E105: 3.66 | F105: 713396.22 | H105: 209985 | I105: 0.87 | J105: 182686.95 | L105: 209985 | M105: 2.02 | N105: 424169.7 | P105: 606856.65
B106: July | D106: 213024 | E106: 3.66 | F106: 779667.84 | H106: 217295 | I106: 0.87 | J106: 189046.65 | L106: 217295 | M106: 2.02 | N106: 438935.9 | P106: 627982.55
B107: August | D107: 220213 | E107: 3.66 | F107: 805979.58 | H107: 223709 | I107: 0.87 | J107: 194626.83 | L107: 223709 | M107: 2.02 | N107: 451892.18 | P107: 646519.01
B108: September | D108: 220438 | E108: 3.66 | F108: 806803.08 | H108: 231690 | I108: 0.87 | J108: 201570.3 | L108: 231690 | M108: 2.02 | N108: 468013.8 | P108: 669584.1
B109: October | D109: 152350 | E109: 3.66 | F109: 557601 | H109: 152350 | I109: 0.87 | J109: 132544.5 | L109: 152350 | M109: 2.02 | N109: 307747 | P109: 440291.5
B110: November | D110: 166620 | E110: 3.66 | F110: 609829.2 | H110: 183436 | I110: 0.87 | J110: 159589.32 | L110: 183436 | M110: 2.02 | N110: 370540.72 | P110: 530130.04
B111: December | D111: 185788 | E111: 3.66 | F111: 679984.08 | H111: 188131 | I111: 0.87 | J111: 163673.97 | L111: 188131 | M111: 2.02 | N111: 380024.62 | P111: 543698.59
B113: Total | D113: =SUM(D100:D111) -> 2241234 | E113: =IF(D113<>0,F113/D113,0) -> 3.66 | F113: =SUM(F100:F111) -> 8202916.44 | H113: =SUM(H100:H111) -> 2512158.606 | I113: =IF(H113<>0,J113/H113,0) -> 0.8699965222 | J113: =SUM(J100:J111) -> 2185569.25 | L113: =SUM(L100:L111) -> 2512158.606 | M113: =IF(L113<>0,N113/L113,0) -> 2.020003478 | N113: =SUM(N100:N111) -> 5074569.12 | P113: =SUM(P100:P111) -> 7260138.37
N115: Low Voltage Switchgear Credit (if applicable) | P115: ='5. UTRs and Sub-Transmission'!E75 -> 0
N117: Total including deduction for Low Voltage Switchgear Credit | P117: =P113+P115 -> 7260138.37

Sheet 7. Current Wholesale
B13: The purpose of this sheet is to calculate the expected billing when current 2016 Uniform Transmission Rates are applied against historical 2015 transmission units.
B20: IESO | D20: Network | H20: Line Connection | L20: Transformation Connection | P20: Total Line
B22: Month | D22: Units Billed | E22: Rate | F22: Amount | H22: Units Billed | I22: Rate | J22: Amount | L22: Units Billed | M22: Rate | N22: Amount | P22: Amount
B24: January | D24: ='6. Historical Wholesale'!D24 -> 185859 | E24: ='5. UTRs and Sub-Transmission'!H22 -> 3.66 | F24: =D24*E24 -> 680243.94 | H24: ='6. Historical Wholesale'!H24 -> 190664 | I24: ='5. UTRs and Sub-Transmission'!H24 -> 0.87 | J24: =H24*I24 -> 165877.68 | L24: ='6. Historical Wholesale'!L24 -> 190664 | M24: ='5. UTRs and Sub-Transmission'!H26 -> 2.02 | N24: =L24*M24 -> 385141.28 | P24: =J24+N24 -> 551018.96
B25: February | D25: ='6. Historical Wholesale'!D25 -> 184535 | E25: =E24 -> 3.66 | F25: =D25*E25 -> 675398.1 | H25: ='6. Historical Wholesale'!H25 -> 215113 | I25: =I24 -> 0.87 | J25: =H25*I25 -> 187148.31 | L25: ='6. Historical Wholesale'!L25 -> 215113 | M25: =M24 -> 2.02 | N25: =L25*M25 -> 434528.26 | P25: 621676.57
B26: March | D26: ='6. Historical Wholesale'!D26 -> 183297 | E26: =E25 -> 3.66 | F26: 670867.02 | H26: ='6. Historical Wholesale'!H26 -> 216716 | I26: =I25 -> 0.87 | J26: 188542.92 | L26: ='6. Historical Wholesale'!L26 -> 216716 | M26: =M25 -> 2.02 | N26: 437766.32 | P26: 626309.24
B27: April | D27: ='6. Historical Wholesale'!D27 -> 158716 | E27: 3.66 | F27: 580900.56 | H27: ='6. Historical Wholesale'!H27 -> 233736.6055 | I27: 0.87 | J27: 203350.8468 | L27: ='6. Historical Wholesale'!L27 -> 233736.6055 | M27: 2.02 | N27: 472147.9432 | P27: 675498.79
B28: May | D28: ='6. Historical Wholesale'!D28 -> 175477 | E28: 3.66 | F28: 642245.82 | H28: ='6. Historical Wholesale'!H28 -> 249333 | I28: 0.87 | J28: 216919.71 | L28: ='6. Historical Wholesale'!L28 -> 249333 | M28: 2.02 | N28: 503652.66 | P28: 720572.37
B29: June | D29: ='6. Historical Wholesale'!D29 -> 194917 | E29: 3.66 | F29: 713396.22 | H29: ='6. Historical Wholesale'!H29 -> 209985 | I29: 0.87 | J29: 182686.95 | L29: ='6. Historical Wholesale'!L29 -> 209985 | M29: 2.02 | N29: 424169.7 | P29: 606856.65
B30: July | D30: ='6. Historical Wholesale'!D30 -> 213024 | E30: 3.66 | F30: 779667.84 | H30: ='6. Historical Wholesale'!H30 -> 217295 | I30: 0.87 | J30: 189046.65 | L30: ='6. Historical Wholesale'!L30 -> 217295 | M30: 2.02 | N30: 438935.9 | P30: 627982.55
B31: August | D31: ='6. Historical Wholesale'!D31 -> 220213 | E31: 3.66 | F31: 805979.58 | H31: ='6. Historical Wholesale'!H31 -> 223709 | I31: 0.87 | J31: 194626.83 | L31: ='6. Historical Wholesale'!L31 -> 223709 | M31: 2.02 | N31: 451892.18 | P31: 646519.01
B32: September | D32: ='6. Historical Wholesale'!D32 -> 220438 | E32: 3.66 | F32: 806803.08 | H32: ='6. Historical Wholesale'!H32 -> 231690 | I32: 0.87 | J32: 201570.3 | L32: ='6. Historical Wholesale'!L32 -> 231690 | M32: 2.02 | N32: 468013.8 | P32: 669584.1
B33: October | D33: ='6. Historical Wholesale'!D33 -> 152350 | E33: 3.66 | F33: 557601 | H33: ='6. Historical Wholesale'!H33 -> 152350 | I33: 0.87 | J33: 132544.5 | L33: ='6. Historical Wholesale'!L33 -> 152350 | M33: 2.02 | N33: 307747 | P33: 440291.5
B34: November | D34: ='6. Historical Wholesale'!D34 -> 166620 | E34: 3.66 | F34: 609829.2 | H34: ='6. Historical Wholesale'!H34 -> 183436 | I34: 0.87 | J34: 159589.32 | L34: ='6. Historical Wholesale'!L34 -> 183436 | M34: 2.02 | N34: 370540.72 | P34: 530130.04
B35: December | D35: ='6. Historical Wholesale'!D35 -> 185788 | E35: 3.66 | F35: 679984.08 | H35: ='6. Historical Wholesale'!H35 -> 188131 | I35: 0.87 | J35: 163673.97 | L35: ='6. Historical Wholesale'!L35 -> 188131 | M35: 2.02 | N35: 380024.62 | P35: 543698.59
B37: Total | D37: =SUM(D24:D35) -> 2241234 | E37: =IF(D37<>0,F37/D37,0) -> 3.66 | F37: =SUM(F24:F35) -> 8202916.44 | H37: =SUM(H24:H35) -> 2512158.606 | I37: =IF(H37<>0,J37/H37,0) -> 0.87 | J37: =SUM(J24:J35) -> 2185577.987 | L37: =SUM(L24:L35) -> 2512158.606 | M37: =IF(L37<>0,N37/L37,0) -> 2.02 | N37: =SUM(N24:N35) -> 5074560.383 | P37: =SUM(P24:P35) -> 7260138.37
B39: Hydro One | D39: Network | H39: Line Connection | L39: Transformation Connection | P39: Total Line
B41: Month | D41: Units Billed | E41: Rate | F41: Amount | H41: Units Billed | I41: Rate | J41: Amount | L41: Units Billed | M41: Rate | N41: Amount | P41: Amount
B43: January | D43: ='6. Historical Wholesale'!D43 -> 0 | E43: ='5. UTRs and Sub-Transmission'!$F$36 -> 3.4121 | F43: =D43*E43 -> 0 | H43: ='6. Historical Wholesale'!H43 -> 0 | I43: ='5. UTRs and Sub-Transmission'!F38 -> 0.7879 | J43: =H43*I43 -> 0 | L43: ='6. Historical Wholesale'!L43 -> 0 | M43: ='5. UTRs and Sub-Transmission'!F40 -> 1.8018 | N43: =L43*M43 -> 0 | P43: =J43+N43 -> 0
B44: February | D44: ='6. Historical Wholesale'!D44 -> 0 | E44: ='5. UTRs and Sub-Transmission'!H36 -> 3.3396 | F44: =D44*E44 -> 0 | H44: ='6. Historical Wholesale'!H44 -> 0 | I44: ='5. UTRs and Sub-Transmission'!H38 -> 0.7791 | J44: =H44*I44 -> 0 | L44: ='6. Historical Wholesale'!L44 -> 0 | M44: ='5. UTRs and Sub-Transmission'!H40 -> 1.7713 | N44: =L44*M44 -> 0 | P44: 0
B45: March | D45: ='6. Historical Wholesale'!D45 -> 0 | E45: =E44 -> 3.3396 | F45: 0 | H45: ='6. Historical Wholesale'!H45 -> 0 | I45: =I44 -> 0.7791 | J45: 0 | L45: ='6. Historical Wholesale'!L45 -> 0 | M45: =M44 -> 1.7713 | N45: 0 | P45: 0
B46: April | D46: ='6. Historical Wholesale'!D46 -> 0 | E46: 3.3396 | F46: 0 | H46: ='6. Historical Wholesale'!H46 -> 0 | I46: 0.7791 | J46: 0 | L46: ='6. Historical Wholesale'!L46 -> 0 | M46: =M45 -> 1.7713 | N46: 0 | P46: 0
B47: May | D47: ='6. Historical Wholesale'!D47 -> 0 | E47: 3.3396 | F47: 0 | H47: ='6. Historical Wholesale'!H47 -> 0 | I47: 0.7791 | J47: 0 | L47: ='6. Historical Wholesale'!L47 -> 0 | M47: 1.7713 | N47: 0 | P47: 0
B48: June | D48: ='6. Historical Wholesale'!D48 -> 0 | E48: 3.3396 | F48: 0 | H48: ='6. Historical Wholesale'!H48 -> 0 | I48: 0.7791 | J48: 0 | L48: ='6. Historical Wholesale'!L48 -> 0 | M48: 1.7713 | N48: 0 | P48: 0
B49: July | D49: ='6. Historical Wholesale'!D49 -> 0 | E49: 3.3396 | F49: 0 | H49: ='6. Historical Wholesale'!H49 -> 0 | I49: 0.7791 | J49: 0 | L49: ='6. Historical Wholesale'!L49 -> 0 | M49: 1.7713 | N49: 0 | P49: 0
B50: August | D50: ='6. Historical Wholesale'!D50 -> 0 | E50: 3.3396 | F50: 0 | H50: ='6. Historical Wholesale'!H50 -> 0 | I50: 0.7791 | J50: 0 | L50: ='6. Historical Wholesale'!L50 -> 0 | M50: 1.7713 | N50: 0 | P50: 0
B51: September | D51: ='6. Historical Wholesale'!D51 -> 0 | E51: 3.3396 | F51: 0 | H51: ='6. Historical Wholesale'!H51 -> 0 | I51: 0.7791 | J51: 0 | L51: ='6. Historical Wholesale'!L51 -> 0 | M51: 1.7713 | N51: 0 | P51: 0
B52: October | D52: ='6. Historical Wholesale'!D52 -> 0 | E52: 3.3396 | F52: 0 | H52: ='6. Historical Wholesale'!H52 -> 0 | I52: 0.7791 | J52: 0 | L52: ='6. Historical Wholesale'!L52 -> 0 | M52: 1.7713 | N52: 0 | P52: 0
B53: November | D53: ='6. Historical Wholesale'!D53 -> 0 | E53: 3.3396 | F53: 0 | H53: ='6. Historical Wholesale'!H53 -> 0 | I53: 0.7791 | J53: 0 | L53: ='6. Historical Wholesale'!L53 -> 0 | M53: 1.7713 | N53: 0 | P53: 0
B54: December | D54: ='6. Historical Wholesale'!D54 -> 0 | E54: 3.3396 | F54: 0 | H54: ='6. Historical Wholesale'!H54 -> 0 | I54: 0.7791 | J54: 0 | L54: ='6. Historical Wholesale'!L54 -> 0 | M54: 1.7713 | N54: 0 | P54: 0
B56: Total | D56: =SUM(D43:D54) -> 0 | E56: =IF(D56<>0,F56/D56,0) -> 0 | F56: =SUM(F43:F54) -> 0 | H56: =SUM(H43:H54) -> 0 | I56: =IF(H56<>0,J56/H56,0) -> 0 | J56: =SUM(J43:J54) -> 0 | L56: =SUM(L43:L54) -> 0 | M56: =IF(L56<>0,N56/L56,0) -> 0 | N56: =SUM(N43:N54) -> 0 | P56: =SUM(P43:P54) -> 0
B58: ='6. Historical Wholesale'!B58 -> Add Extra Host Here (I) | D58: Network | H58: Line Connection | L58: Transformation Connection | P58: Total Line
B60: Month | D60: Units Billed | E60: Rate | F60: Amount | H60: Units Billed | I60: Rate | J60: Amount | L60: Units Billed | M60: Rate | N60: Amount | P60: Amount
B62: January | D62: ='6. Historical Wholesale'!D62 -> 0 | E62: ='5. UTRs and Sub-Transmission'!H51 -> 0 | F62: =D62*E62 -> 0 | H62: ='6. Historical Wholesale'!H62 -> 0 | I62: ='5. UTRs and Sub-Transmission'!H53 -> 0 | J62: =H62*I62 -> 0 | L62: ='6. Historical Wholesale'!L62 -> 0 | M62: ='5. UTRs and Sub-Transmission'!H55 -> 0 | N62: =L62*M62 -> 0 | P62: =J62+N62 -> 0
B63: February | D63: ='6. Historical Wholesale'!D63 -> 0 | E63: =E62 -> 0 | F63: =D63*E63 -> 0 | H63: ='6. Historical Wholesale'!H63 -> 0 | I63: =I62 -> 0 | J63: =H63*I63 -> 0 | L63: ='6. Historical Wholesale'!L63 -> 0 | M63: =M62 -> 0 | N63: =L63*M63 -> 0 | P63: 0
B64: March | D64: ='6. Historical Wholesale'!D64 -> 0 | E64: =E63 -> 0 | F64: 0 | H64: ='6. Historical Wholesale'!H64 -> 0 | I64: =I63 -> 0 | J64: 0 | L64: ='6. Historical Wholesale'!L64 -> 0 | M64: =M63 -> 0 | N64: 0 | P64: 0
B65: April | D65: ='6. Historical Wholesale'!D65 -> 0 | E65: 0 | F65: 0 | H65: ='6. Historical Wholesale'!H65 -> 0 | I65: 0 | J65: 0 | L65: ='6. Historical Wholesale'!L65 -> 0 | M65: =M64 -> 0 | N65: 0 | P65: 0
B66: May | D66: ='6. Historical Wholesale'!D66 -> 0 | E66: 0 | F66: 0 | H66: ='6. Historical Wholesale'!H66 -> 0 | I66: 0 | J66: 0 | L66: ='6. Historical Wholesale'!L66 -> 0 | M66: 0 | N66: 0 | P66: 0
B67: June | D67: ='6. Historical Wholesale'!D67 -> 0 | E67: 0 | F67: 0 | H67: ='6. Historical Wholesale'!H67 -> 0 | I67: 0 | J67: 0 | L67: ='6. Historical Wholesale'!L67 -> 0 | M67: 0 | N67: 0 | P67: 0
B68: July | D68: ='6. Historical Wholesale'!D68 -> 0 | E68: 0 | F68: 0 | H68: ='6. Historical Wholesale'!H68 -> 0 | I68: 0 | J68: 0 | L68: ='6. Historical Wholesale'!L68 -> 0 | M68: 0 | N68: 0 | P68: 0
B69: August | D69: ='6. Historical Wholesale'!D69 -> 0 | E69: 0 | F69: 0 | H69: ='6. Historical Wholesale'!H69 -> 0 | I69: 0 | J69: 0 | L69: ='6. Historical Wholesale'!L69 -> 0 | M69: 0 | N69: 0 | P69: 0
B70: September | D70: ='6. Historical Wholesale'!D70 -> 0 | E70: 0 | F70: 0 | H70: ='6. Historical Wholesale'!H70 -> 0 | I70: 0 | J70: 0 | L70: ='6. Historical Wholesale'!L70 -> 0 | M70: 0 | N70: 0 | P70: 0
B71: October | D71: ='6. Historical Wholesale'!D71 -> 0 | E71: 0 | F71: 0 | H71: ='6. Historical Wholesale'!H71 -> 0 | I71: 0 | J71: 0 | L71: ='6. Historical Wholesale'!L71 -> 0 | M71: 0 | N71: 0 | P71: 0
B72: November | D72: ='6. Historical Wholesale'!D72 -> 0 | E72: 0 | F72: 0 | H72: ='6. Historical Wholesale'!H72 -> 0 | I72: 0 | J72: 0 | L72: ='6. Historical Wholesale'!L72 -> 0 | M72: 0 | N72: 0 | P72: 0
B73: December | D73: ='6. Historical Wholesale'!D73 -> 0 | E73: 0 | F73: 0 | H73: ='6. Historical Wholesale'!H73 -> 0 | I73: 0 | J73: 0 | L73: ='6. Historical Wholesale'!L73 -> 0 | M73: 0 | N73: 0 | P73: 0
B75: Total | D75: =SUM(D62:D73) -> 0 | E75: =IF(D75<>0,F75/D75,0) -> 0 | F75: =SUM(F62:F73) -> 0 | H75: =SUM(H62:H73) -> 0 | I75: =IF(H75<>0,J75/H75,0) -> 0 | J75: =SUM(J62:J73) -> 0 | L75: =SUM(L62:L73) -> 0 | M75: =IF(L75<>0,N75/L75,0) -> 0 | N75: =SUM(N62:N73) -> 0 | P75: =SUM(P62:P73) -> 0
B77: ='6. Historical Wholesale'!B77 -> Add Extra Host Here (II) | D77: Network | H77: Line Connection | L77: Transformation Connection | P77: Total Line
B79: Month | D79: Units Billed | E79: Rate | F79: Amount | H79: Units Billed | I79: Rate | J79: Amount | L79: Units Billed | M79: Rate | N79: Amount | P79: Amount
B81: January | D81: ='6. Historical Wholesale'!D81 -> 0 | E81: ='5. UTRs and Sub-Transmission'!H66 -> 0 | F81: =D81*E81 -> 0 | H81: ='6. Historical Wholesale'!H81 -> 0 | I81: ='5. UTRs and Sub-Transmission'!H68 -> 0 | J81: =H81*I81 -> 0 | L81: ='6. Historical Wholesale'!L81 -> 0 | M81: ='5. UTRs and Sub-Transmission'!H70 -> 0 | N81: =L81*M81 -> 0 | P81: =J81+N81 -> 0
B82: February | D82: ='6. Historical Wholesale'!D82 -> 0 | E82: =E81 -> 0 | F82: =D82*E82 -> 0 | H82: ='6. Historical Wholesale'!H82 -> 0 | I82: =I81 -> 0 | J82: =H82*I82 -> 0 | L82: ='6. Historical Wholesale'!L82 -> 0 | M82: =M81 -> 0 | N82: =L82*M82 -> 0 | P82: 0
B83: March | D83: ='6. Historical Wholesale'!D83 -> 0 | E83: =E82 -> 0 | F83: 0 | H83: ='6. Historical Wholesale'!H83 -> 0 | I83: =I82 -> 0 | J83: 0 | L83: ='6. Historical Wholesale'!L83 -> 0 | M83: =M82 -> 0 | N83: 0 | P83: 0
B84: April | D84: ='6. Historical Wholesale'!D84 -> 0 | E84: 0 | F84: 0 | H84: ='6. Historical Wholesale'!H84 -> 0 | I84: 0 | J84: 0 | L84: ='6. Historical Wholesale'!L84 -> 0 | M84: =M83 -> 0 | N84: 0 | P84: 0
B85: May | D85: ='6. Historical Wholesale'!D85 -> 0 | E85: 0 | F85: 0 | H85: ='6. Historical Wholesale'!H85 -> 0 | I85: 0 | J85: 0 | L85: ='6. Historical Wholesale'!L85 -> 0 | M85: 0 | N85: 0 | P85: 0
B86: June | D86: ='6. Historical Wholesale'!D86 -> 0 | E86: 0 | F86: 0 | H86: ='6. Historical Wholesale'!H86 -> 0 | I86: 0 | J86: 0 | L86: ='6. Historical Wholesale'!L86 -> 0 | M86: 0 | N86: 0 | P86: 0
B87: July | D87: ='6. Historical Wholesale'!D87 -> 0 | E87: 0 | F87: 0 | H87: ='6. Historical Wholesale'!H87 -> 0 | I87: 0 | J87: 0 | L87: ='6. Historical Wholesale'!L87 -> 0 | M87: 0 | N87: 0 | P87: 0
B88: August | D88: ='6. Historical Wholesale'!D88 -> 0 | E88: 0 | F88: 0 | H88: ='6. Historical Wholesale'!H88 -> 0 | I88: 0 | J88: 0 | L88: ='6. Historical Wholesale'!L88 -> 0 | M88: 0 | N88: 0 | P88: 0
B89: September | D89: ='6. Historical Wholesale'!D89 -> 0 | E89: 0 | F89: 0 | H89: ='6. Historical Wholesale'!H89 -> 0 | I89: 0 | J89: 0 | L89: ='6. Historical Wholesale'!L89 -> 0 | M89: 0 | N89: 0 | P89: 0
B90: October | D90: ='6. Historical Wholesale'!D90 -> 0 | E90: 0 | F90: 0 | H90: ='6. Historical Wholesale'!H90 -> 0 | I90: 0 | J90: 0 | L90: ='6. Historical Wholesale'!L90 -> 0 | M90: 0 | N90: 0 | P90: 0
B91: November | D91: ='6. Historical Wholesale'!D91 -> 0 | E91: 0 | F91: 0 | H91: ='6. Historical Wholesale'!H91 -> 0 | I91: 0 | J91: 0 | L91: ='6. Historical Wholesale'!L91 -> 0 | M91: 0 | N91: 0 | P91: 0
B92: December | D92: ='6. Historical Wholesale'!D92 -> 0 | E92: 0 | F92: 0 | H92: ='6. Historical Wholesale'!H92 -> 0 | I92: 0 | J92: 0 | L92: ='6. Historical Wholesale'!L92 -> 0 | M92: 0 | N92: 0 | P92: 0
B94: Total | D94: =SUM(D81:D92) -> 0 | E94: =IF(D94<>0,F94/D94,0) -> 0 | F94: =SUM(F81:F92) -> 0 | H94: =SUM(H81:H92) -> 0 | I94: =IF(H94<>0,J94/H94,0) -> 0 | J94: =SUM(J81:J92) -> 0 | L94: =SUM(L81:L92) -> 0 | M94: =IF(L94<>0,N94/L94,0) -> 0 | N94: =SUM(N81:N92) -> 0 | P94: =SUM(P81:P92) -> 0
B96: Total | D96: Network | H96: Line Connection | L96: Transformation Connection | P96: Total Line
B98: Month | D98: Units Billed | E98: Rate | F98: Amount | H98: Units Billed | I98: Rate | J98: Amount | L98: Units Billed | M98: Rate | N98: Amount | P98: Amount
B100: January | D100: =D24+D43+D62+D81 -> 185859 | E100: =IF(D100<>0,F100/D100,0) -> 3.66 | F100: =F24+F43+F62+F81 -> 680243.94 | H100: =H24+H43+H62+H81 -> 190664 | I100: =IF(H100<>0,J100/H100,0) -> 0.87 | J100: =J24+J43+J62+J81 -> 165877.68 | L100: =L24+L43+L62+L81 -> 190664 | M100: =IF(L100<>0,N100/L100,0) -> 2.02 | N100: =N24+N43+N62+N81 -> 385141.28 | P100: =J100+N100 -> 551018.96
B101: February | D101: =D25+D44+D63+D82 -> 184535 | E101: 3.66 | F101: =F25+F44+F63+F82 -> 675398.1 | H101: =H25+H44+H63+H82 -> 215113 | I101: 0.87 | J101: =J25+J44+J63+J82 -> 187148.31 | L101: =L25+L44+L63+L82 -> 215113 | M101: 2.02 | N101: =N25+N44+N63+N82 -> 434528.26 | P101: 621676.57
B102: March | D102: 183297 | E102: 3.66 | F102: 670867.02 | H102: 216716 | I102: 0.87 | J102: 188542.92 | L102: 216716 | M102: 2.02 | N102: 437766.32 | P102: 626309.24
B103: April | D103: 158716 | E103: 3.66 | F103: 580900.56 | H103: 233736.6055 | I103: 0.87 | J103: 203350.8468 | L103: 233736.6055 | M103: 2.02 | N103: 472147.9432 | P103: 675498.79
B104: May | D104: 175477 | E104: 3.66 | F104: 642245.82 | H104: 249333 | I104: 0.87 | J104: 216919.71 | L104: 249333 | M104: 2.02 | N104: 503652.66 | P104: 720572.37
B105: June | D105: 194917 | E105: 3.66 | F105: 713396.22 | H105: 209985 | I105: 0.87 | J105: 182686.95 | L105: 209985 | M105: 2.02 | N105: 424169.7 | P105: 606856.65
B106: July | D106: 213024 | E106: 3.66 | F106: 779667.84 | H106: 217295 | I106: 0.87 | J106: 189046.65 | L106: 217295 | M106: 2.02 | N106: 438935.9 | P106: 627982.55
B107: August | D107: 220213 | E107: 3.66 | F107: 805979.58 | H107: 223709 | I107: 0.87 | J107: 194626.83 | L107: 223709 | M107: 2.02 | N107: 451892.18 | P107: 646519.01
B108: September | D108: 220438 | E108: 3.66 | F108: 806803.08 | H108: 231690 | I108: 0.87 | J108: 201570.3 | L108: 231690 | M108: 2.02 | N108: 468013.8 | P108: 669584.1
B109: October | D109: 152350 | E109: 3.66 | F109: 557601 | H109: 152350 | I109: 0.87 | J109: 132544.5 | L109: 152350 | M109: 2.02 | N109: 307747 | P109: 440291.5
B110: November | D110: 166620 | E110: 3.66 | F110: 609829.2 | H110: 183436 | I110: 0.87 | J110: 159589.32 | L110: 183436 | M110: 2.02 | N110: 370540.72 | P110: 530130.04
B111: December | D111: 185788 | E111: 3.66 | F111: 679984.08 | H111: 188131 | I111: 0.87 | J111: 163673.97 | L111: 188131 | M111: 2.02 | N111: 380024.62 | P111: 543698.59
B113: Total | D113: =SUM(D100:D111) -> 2241234 | E113: =IF(D113<>0,F113/D113,0) -> 3.66 | F113: =SUM(F100:F111) -> 8202916.44 | H113: =SUM(H100:H111) -> 2512158.606 | I113: =IF(H113<>0,J113/H113,0) -> 0.87 | J113: =SUM(J100:J111) -> 2185577.987 | L113: =SUM(L100:L111) -> 2512158.606 | M113: =IF(L113<>0,N113/L113,0) -> 2.02 | N113: =SUM(N100:N111) -> 5074560.383 | P113: =SUM(P100:P111) -> 7260138.37
N115: Low Voltage Switchgear Credit (if applicable) | P115: ='5. UTRs and Sub-Transmission'!H75 -> 0
N117: Total including deduction for Low Voltage Switchgear Credit | P117: =P113+P115 -> 7260138.37

Sheet 8. Forecast Wholesale
B13: The purpose of this sheet is to calculate the expected billing when forecasted 2017 Uniform Transmission Rates are applied against historical 2015 transmission units.
B20: IESO | D20: Network | H20: Line Connection | L20: Transformation Connection | P20: Total Line
B22: Month | D22: Units Billed | E22: Rate | F22: Amount | H22: Units Billed | I22: Rate | J22: Amount | L22: Units Billed | M22: Rate | N22: Amount | P22: Amount
B24: January | D24: ='6. Historical Wholesale'!D24 -> 185859 | E24: ='5. UTRs and Sub-Transmission'!J22 -> 3.66 | F24: =D24*E24 -> 680243.94 | H24: ='6. Historical Wholesale'!H24 -> 190664 | I24: ='5. UTRs and Sub-Transmission'!J24 -> 0.87 | J24: =H24*I24 -> 165877.68 | L24: ='6. Historical Wholesale'!L24 -> 190664 | M24: ='5. UTRs and Sub-Transmission'!J26 -> 2.02 | N24: =L24*M24 -> 385141.28 | P24: =J24+N24 -> 551018.96
B25: February | D25: ='6. Historical Wholesale'!D25 -> 184535 | E25: =E24 -> 3.66 | F25: 675398.1 | H25: ='6. Historical Wholesale'!H25 -> 215113 | I25: =I24 -> 0.87 | J25: 187148.31 | L25: ='6. Historical Wholesale'!L25 -> 215113 | M25: =M24 -> 2.02 | N25: 434528.26 | P25: 621676.57
B26: March | D26: ='6. Historical Wholesale'!D26 -> 183297 | E26: 3.66 | F26: 670867.02 | H26: ='6. Historical Wholesale'!H26 -> 216716 | I26: 0.87 | J26: 188542.92 | L26: ='6. Historical Wholesale'!L26 -> 216716 | M26: 2.02 | N26: 437766.32 | P26: 626309.24
B27: April | D27: ='6. Historical Wholesale'!D27 -> 158716 | E27: 3.66 | F27: 580900.56 | H27: ='6. Historical Wholesale'!H27 -> 233736.6055 | I27: 0.87 | J27: 203350.8468 | L27: ='6. Historical Wholesale'!L27 -> 233736.6055 | M27: 2.02 | N27: 472147.9432 | P27: 675498.79
B28: May | D28: ='6. Historical Wholesale'!D28 -> 175477 | E28: 3.66 | F28: 642245.82 | H28: ='6. Historical Wholesale'!H28 -> 249333 | I28: 0.87 | J28: 216919.71 | L28: ='6. Historical Wholesale'!L28 -> 249333 | M28: 2.02 | N28: 503652.66 | P28: 720572.37
B29: June | D29: ='6. Historical Wholesale'!D29 -> 194917 | E29: 3.66 | F29: 713396.22 | H29: ='6. Historical Wholesale'!H29 -> 209985 | I29: 0.87 | J29: 182686.95 | L29: ='6. Historical Wholesale'!L29 -> 209985 | M29: 2.02 | N29: 424169.7 | P29: 606856.65
B30: July | D30: ='6. Historical Wholesale'!D30 -> 213024 | E30: 3.66 | F30: 779667.84 | H30: ='6. Historical Wholesale'!H30 -> 217295 | I30: 0.87 | J30: 189046.65 | L30: ='6. Historical Wholesale'!L30 -> 217295 | M30: 2.02 | N30: 438935.9 | P30: 627982.55
B31: August | D31: ='6. Historical Wholesale'!D31 -> 220213 | E31: 3.66 | F31: 805979.58 | H31: ='6. Historical Wholesale'!H31 -> 223709 | I31: 0.87 | J31: 194626.83 | L31: ='6. Historical Wholesale'!L31 -> 223709 | M31: 2.02 | N31: 451892.18 | P31: 646519.01
B32: September | D32: ='6. Historical Wholesale'!D32 -> 220438 | E32: 3.66 | F32: 806803.08 | H32: ='6. Historical Wholesale'!H32 -> 231690 | I32: 0.87 | J32: 201570.3 | L32: ='6. Historical Wholesale'!L32 -> 231690 | M32: 2.02 | N32: 468013.8 | P32: 669584.1
B33: October | D33: ='6. Historical Wholesale'!D33 -> 152350 | E33: 3.66 | F33: 557601 | H33: ='6. Historical Wholesale'!H33 -> 152350 | I33: 0.87 | J33: 132544.5 | L33: ='6. Historical Wholesale'!L33 -> 152350 | M33: 2.02 | N33: 307747 | P33: 440291.5
B34: November | D34: ='6. Historical Wholesale'!D34 -> 166620 | E34: 3.66 | F34: 609829.2 | H34: ='6. Historical Wholesale'!H34 -> 183436 | I34: 0.87 | J34: 159589.32 | L34: ='6. Historical Wholesale'!L34 -> 183436 | M34: 2.02 | N34: 370540.72 | P34: 530130.04
B35: December | D35: ='6. Historical Wholesale'!D35 -> 185788 | E35: 3.66 | F35: 679984.08 | H35: ='6. Historical Wholesale'!H35 -> 188131 | I35: 0.87 | J35: 163673.97 | L35: ='6. Historical Wholesale'!L35 -> 188131 | M35: 2.02 | N35: 380024.62 | P35: 543698.59
B37: Total | D37: =SUM(D24:D35) -> 2241234 | E37: =IF(D37<>0,F37/D37,0) -> 3.66 | F37: =SUM(F24:F35) -> 8202916.44 | H37: =SUM(H24:H35) -> 2512158.606 | I37: =IF(H37<>0,J37/H37,0) -> 0.87 | J37: =SUM(J24:J35) -> 2185577.987 | L37: =SUM(L24:L35) -> 2512158.606 | M37: =IF(L37<>0,N37/L37,0) -> 2.02 | N37: =SUM(N24:N35) -> 5074560.383 | P37: =SUM(P24:P35) -> 7260138.37
B39: Hydro One | D39: Network | H39: Line Connection | L39: Transformation Connection | P39: Total Line
B41: Month | D41: Units Billed | E41: Rate | F41: Amount | H41: Units Billed | I41: Rate | J41: Amount | L41: Units Billed | M41: Rate | N41: Amount | P41: Amount
B43: January | D43: ='6. Historical Wholesale'!D43 -> 0 | E43: ='5. UTRs and Sub-Transmission'!J36 -> 3.3396 | F43: =D43*E43 -> 0 | H43: ='6. Historical Wholesale'!H43 -> 0 | I43: ='5. UTRs and Sub-Transmission'!J38 -> 0.7791 | J43: =H43*I43 -> 0 | L43: ='6. Historical Wholesale'!L43 -> 0 | M43: ='5. UTRs and Sub-Transmission'!J40 -> 1.7713 | N43: =L43*M43 -> 0 | P43: =J43+N43 -> 0
B44: February | D44: ='6. Historical Wholesale'!D44 -> 0 | E44: =E43 -> 3.3396 | F44: 0 | H44: ='6. Historical Wholesale'!H44 -> 0 | I44: =I43 -> 0.7791 | J44: 0 | L44: ='6. Historical Wholesale'!L44 -> 0 | M44: =M43 -> 1.7713 | N44: 0 | P44: 0
B45: March | D45: ='6. Historical Wholesale'!D45 -> 0 | E45: 3.3396 | F45: 0 | H45: ='6. Historical Wholesale'!H45 -> 0 | I45: 0.7791 | J45: 0 | L45: ='6. Historical Wholesale'!L45 -> 0 | M45: 1.7713 | N45: 0 | P45: 0
B46: April | D46: ='6. Historical Wholesale'!D46 -> 0 | E46: 3.3396 | F46: 0 | H46: ='6. Historical Wholesale'!H46 -> 0 | I46: 0.7791 | J46: 0 | L46: ='6. Historical Wholesale'!L46 -> 0 | M46: 1.7713 | N46: 0 | P46: 0
B47: May | D47: ='6. Historical Wholesale'!D47 -> 0 | E47: 3.3396 | F47: 0 | H47: ='6. Historical Wholesale'!H47 -> 0 | I47: 0.7791 | J47: 0 | L47: ='6. Historical Wholesale'!L47 -> 0 | M47: 1.7713 | N47: 0 | P47: 0
B48: June | D48: ='6. Historical Wholesale'!D48 -> 0 | E48: 3.3396 | F48: 0 | H48: ='6. Historical Wholesale'!H48 -> 0 | I48: 0.7791 | J48: 0 | L48: ='6. Historical Wholesale'!L48 -> 0 | M48: 1.7713 | N48: 0 | P48: 0
B49: July | D49: ='6. Historical Wholesale'!D49 -> 0 | E49: 3.3396 | F49: 0 | H49: ='6. Historical Wholesale'!H49 -> 0 | I49: 0.7791 | J49: 0 | L49: ='6. Historical Wholesale'!L49 -> 0 | M49: 1.7713 | N49: 0 | P49: 0
B50: August | D50: ='6. Historical Wholesale'!D50 -> 0 | E50: 3.3396 | F50: 0 | H50: ='6. Historical Wholesale'!H50 -> 0 | I50: 0.7791 | J50: 0 | L50: ='6. Historical Wholesale'!L50 -> 0 | M50: 1.7713 | N50: 0 | P50: 0
B51: September | D51: ='6. Historical Wholesale'!D51 -> 0 | E51: 3.3396 | F51: 0 | H51: ='6. Historical Wholesale'!H51 -> 0 | I51: 0.7791 | J51: 0 | L51: ='6. Historical Wholesale'!L51 -> 0 | M51: 1.7713 | N51: 0 | P51: 0
B52: October | D52: ='6. Historical Wholesale'!D52 -> 0 | E52: 3.3396 | F52: 0 | H52: ='6. Historical Wholesale'!H52 -> 0 | I52: 0.7791 | J52: 0 | L52: ='6. Historical Wholesale'!L52 -> 0 | M52: 1.7713 | N52: 0 | P52: 0
B53: November | D53: ='6. Historical Wholesale'!D53 -> 0 | E53: 3.3396 | F53: 0 | H53: ='6. Historical Wholesale'!H53 -> 0 | I53: 0.7791 | J53: 0 | L53: ='6. Historical Wholesale'!L53 -> 0 | M53: 1.7713 | N53: 0 | P53: 0
B54: December | D54: ='6. Historical Wholesale'!D54 -> 0 | E54: 3.3396 | F54: 0 | H54: ='6. Historical Wholesale'!H54 -> 0 | I54: 0.7791 | J54: 0 | L54: ='6. Historical Wholesale'!L54 -> 0 | M54: 1.7713 | N54: 0 | P54: 0
B56: Total | D56: =SUM(D43:D54) -> 0 | E56: =IF(D56<>0,F56/D56,0) -> 0 | F56: =SUM(F43:F54) -> 0 | H56: =SUM(H43:H54) -> 0 | I56: =IF(H56<>0,J56/H56,0) -> 0 | J56: =SUM(J43:J54) -> 0 | L56: =SUM(L43:L54) -> 0 | M56: =IF(L56<>0,N56/L56,0) -> 0 | N56: =SUM(N43:N54) -> 0 | P56: =SUM(P43:P54) -> 0
B58: ='6. Historical Wholesale'!B58 -> Add Extra Host Here (I) | D58: Network | H58: Line Connection | L58: Transformation Connection | P58: Total Line
B60: Month | D60: Units Billed | E60: Rate | F60: Amount | H60: Units Billed | I60: Rate | J60: Amount | L60: Units Billed | M60: Rate | N60: Amount | P60: Amount
B62: January | D62: ='6. Historical Wholesale'!D62 -> 0 | E62: ='5. UTRs and Sub-Transmission'!J51 -> 0 | F62: =D62*E62 -> 0 | H62: ='6. Historical Wholesale'!H62 -> 0 | I62: ='5. UTRs and Sub-Transmission'!J53 -> 0 | J62: =H62*I62 -> 0 | L62: ='6. Historical Wholesale'!L62 -> 0 | M62: ='5. UTRs and Sub-Transmission'!J55 -> 0 | N62: =L62*M62 -> 0 | P62: =J62+N62 -> 0
B63: February | D63: ='6. Historical Wholesale'!D63 -> 0 | E63: =E62 -> 0 | F63: 0 | H63: ='6. Historical Wholesale'!H63 -> 0 | I63: =I62 -> 0 | J63: 0 | L63: ='6. Historical Wholesale'!L63 -> 0 | M63: =M62 -> 0 | N63: 0 | P63: 0
B64: March | D64: ='6. Historical Wholesale'!D64 -> 0 | E64: 0 | F64: 0 | H64: ='6. Historical Wholesale'!H64 -> 0 | I64: 0 | J64: 0 | L64: ='6. Historical Wholesale'!L64 -> 0 | M64: 0 | N64: 0 | P64: 0
B65: April | D65: ='6. Historical Wholesale'!D65 -> 0 | E65: 0 | F65: 0 | H65: ='6. Historical Wholesale'!H65 -> 0 | I65: 0 | J65: 0 | L65: ='6. Historical Wholesale'!L65 -> 0 | M65: 0 | N65: 0 | P65: 0
B66: May | D66: ='6. Historical Wholesale'!D66 -> 0 | E66: 0 | F66: 0 | H66: ='6. Historical Wholesale'!H66 -> 0 | I66: 0 | J66: 0 | L66: ='6. Historical Wholesale'!L66 -> 0 | M66: 0 | N66: 0 | P66: 0
B67: June | D67: ='6. Historical Wholesale'!D67 -> 0 | E67: 0 | F67: 0 | H67: ='6. Historical Wholesale'!H67 -> 0 | I67: 0 | J67: 0 | L67: ='6. Historical Wholesale'!L67 -> 0 | M67: 0 | N67: 0 | P67: 0
B68: July | D68: ='6. Historical Wholesale'!D68 -> 0 | E68: 0 | F68: 0 | H68: ='6. Historical Wholesale'!H68 -> 0 | I68: 0 | J68: 0 | L68: ='6. Historical Wholesale'!L68 -> 0 | M68: 0 | N68: 0 | P68: 0
B69: August | D69: ='6. Historical Wholesale'!D69 -> 0 | E69: 0 | F69: 0 | H69: ='6. Historical Wholesale'!H69 -> 0 | I69: 0 | J69: 0 | L69: ='6. Historical Wholesale'!L69 -> 0 | M69: 0 | N69: 0 | P69: 0
B70: September | D70: ='6. Historical Wholesale'!D70 -> 0 | E70: 0 | F70: 0 | H70: ='6. Historical Wholesale'!H70 -> 0 | I70: 0 | J70: 0 | L70: ='6. Historical Wholesale'!L70 -> 0 | M70: 0 | N70: 0 | P70: 0
B71: October | D71: ='6. Historical Wholesale'!D71 -> 0 | E71: 0 | F71: 0 | H71: ='6. Historical Wholesale'!H71 -> 0 | I71: 0 | J71: 0 | L71: ='6. Historical Wholesale'!L71 -> 0 | M71: 0 | N71: 0 | P71: 0
B72: November | D72: ='6. Historical Wholesale'!D72 -> 0 | E72: 0 | F72: 0 | H72: ='6. Historical Wholesale'!H72 -> 0 | I72: 0 | J72: 0 | L72: ='6. Historical Wholesale'!L72 -> 0 | M72: 0 | N72: 0 | P72: 0
B73: December | D73: ='6. Historical Wholesale'!D73 -> 0 | E73: 0 | F73: 0 | H73: ='6. Historical Wholesale'!H73 -> 0 | I73: 0 | J73: 0 | L73: ='6. Historical Wholesale'!L73 -> 0 | M73: 0 | N73: 0 | P73: 0
B75: Total | D75: =SUM(D62:D73) -> 0 | E75: =IF(D75<>0,F75/D75,0) -> 0 | F75: =SUM(F62:F73) -> 0 | H75: =SUM(H62:H73) -> 0 | I75: =IF(H75<>0,J75/H75,0) -> 0 | J75: =SUM(J62:J73) -> 0 | L75: =SUM(L62:L73) -> 0 | M75: =IF(L75<>0,N75/L75,0) -> 0 | N75: =SUM(N62:N73) -> 0 | P75: =SUM(P62:P73) -> 0
B77: ='6. Historical Wholesale'!B77 -> Add Extra Host Here (II) | D77: Network | H77: Line Connection | L77: Transformation Connection | P77: Total Line
B79: Month | D79: Units Billed | E79: Rate | F79: Amount | H79: Units Billed | I79: Rate | J79: Amount | L79: Units Billed | M79: Rate | N79: Amount | P79: Amount
B81: January | D81: ='6. Historical Wholesale'!D81 -> 0 | E81: ='5. UTRs and Sub-Transmission'!J66 -> 0 | F81: =D81*E81 -> 0 | H81: ='6. Historical Wholesale'!H81 -> 0 | I81: ='5. UTRs and Sub-Transmission'!J68 -> 0 | J81: =H81*I81 -> 0 | L81: ='6. Historical Wholesale'!L81 -> 0 | M81: ='5. UTRs and Sub-Transmission'!J70 -> 0 | N81: =L81*M81 -> 0 | P81: =J81+N81 -> 0
B82: February | D82: ='6. Historical Wholesale'!D82 -> 0 | E82: =E81 -> 0 | F82: 0 | H82: ='6. Historical Wholesale'!H82 -> 0 | I82: =I81 -> 0 | J82: 0 | L82: ='6. Historical Wholesale'!L82 -> 0 | M82: =M81 -> 0 | N82: 0 | P82: 0
B83: March | D83: ='6. Historical Wholesale'!D83 -> 0 | E83: 0 | F83: 0 | H83: ='6. Historical Wholesale'!H83 -> 0 | I83: 0 | J83: 0 | L83: ='6. Historical Wholesale'!L83 -> 0 | M83: 0 | N83: 0 | P83: 0
B84: April | D84: ='6. Historical Wholesale'!D84 -> 0 | E84: 0 | F84: 0 | H84: ='6. Historical Wholesale'!H84 -> 0 | I84: 0 | J84: 0 | L84: ='6. Historical Wholesale'!L84 -> 0 | M84: 0 | N84: 0 | P84: 0
B85: May | D85: ='6. Historical Wholesale'!D85 -> 0 | E85: 0 | F85: 0 | H85: ='6. Historical Wholesale'!H85 -> 0 | I85: 0 | J85: 0 | L85: ='6. Historical Wholesale'!L85 -> 0 | M85: 0 | N85: 0 | P85: 0
B86: June | D86: ='6. Historical Wholesale'!D86 -> 0 | E86: 0 | F86: 0 | H86: ='6. Historical Wholesale'!H86 -> 0 | I86: 0 | J86: 0 | L86: ='6. Historical Wholesale'!L86 -> 0 | M86: 0 | N86: 0 | P86: 0
B87: July | D87: ='6. Historical Wholesale'!D87 -> 0 | E87: 0 | F87: 0 | H87: ='6. Historical Wholesale'!H87 -> 0 | I87: 0 | J87: 0 | L87: ='6. Historical Wholesale'!L87 -> 0 | M87: 0 | N87: 0 | P87: 0
B88: August | D88: ='6. Historical Wholesale'!D88 -> 0 | E88: 0 | F88: 0 | H88: ='6. Historical Wholesale'!H88 -> 0 | I88: 0 | J88: 0 | L88: ='6. Historical Wholesale'!L88 -> 0 | M88: 0 | N88: 0 | P88: 0
B89: September | D89: ='6. Historical Wholesale'!D89 -> 0 | E89: 0 | F89: 0 | H89: ='6. Historical Wholesale'!H89 -> 0 | I89: 0 | J89: 0 | L89: ='6. Historical Wholesale'!L89 -> 0 | M89: 0 | N89: 0 | P89: 0
B90: October | D90: ='6. Historical Wholesale'!D90 -> 0 | E90: 0 | F90: 0 | H90: ='6. Historical Wholesale'!H90 -> 0 | I90: 0 | J90: 0 | L90: ='6. Historical Wholesale'!L90 -> 0 | M90: 0 | N90: 0 | P90: 0
B91: November | D91: ='6. Historical Wholesale'!D91 -> 0 | E91: 0 | F91: 0 | H91: ='6. Historical Wholesale'!H91 -> 0 | I91: 0 | J91: 0 | L91: ='6. Historical Wholesale'!L91 -> 0 | M91: 0 | N91: 0 | P91: 0
B92: December | D92: ='6. Historical Wholesale'!D92 -> 0 | E92: 0 | F92: 0 | H92: ='6. Historical Wholesale'!H92 -> 0 | I92: 0 | J92: 0 | L92: ='6. Historical Wholesale'!L92 -> 0 | M92: 0 | N92: 0 | P92: 0
B94: Total | D94: =SUM(D81:D92) -> 0 | E94: =IF(D94<>0,F94/D94,0) -> 0 | F94: =SUM(F81:F92) -> 0 | H94: =SUM(H81:H92) -> 0 | I94: =IF(H94<>0,J94/H94,0) -> 0 | J94: =SUM(J81:J92) -> 0 | L94: =SUM(L81:L92) -> 0 | M94: =IF(L94<>0,N94/L94,0) -> 0 | N94: =SUM(N81:N92) -> 0 | P94: =SUM(P81:P92) -> 0
B96: Total | D96: Network | H96: Line Connection | L96: Transformation Connection | P96: Total Line
B98: Month | D98: Units Billed | E98: Rate | F98: Amount | H98: Units Billed | I98: Rate | J98: Amount | L98: Units Billed | M98: Rate | N98: Amount | P98: Amount
B100: January | D100: =D24+D43+D62+D81 -> 185859 | E100: =IF(D100<>0,F100/D100,0) -> 3.66 | F100: =F24+F43+F62+F81 -> 680243.94 | H100: =H24+H43+H62+H81 -> 190664 | I100: =IF(H100<>0,J100/H100,0) -> 0.87 | J100: =J24+J43+J62+J81 -> 165877.68 | L100: =L24+L43+L62+L81 -> 190664 | M100: =IF(L100<>0,N100/L100,0) -> 2.02 | N100: =N24+N43+N62+N81 -> 385141.28 | P100: =J100+N100 -> 551018.96
B101: February | D101: =D25+D44+D63+D82 -> 184535 | E101: 3.66 | F101: 675398.1 | H101: =H25+H44+H63+H82 -> 215113 | I101: 0.87 | J101: =J25+J44+J63+J82 -> 187148.31 | L101: =L25+L44+L63+L82 -> 215113 | M101: 2.02 | N101: =N25+N44+N63+N82 -> 434528.26 | P101: 621676.57
B102: March | D102: 183297 | E102: 3.66 | F102: 670867.02 | H102: =H26+H45+H64+H83 -> 216716 | I102: 0.87 | J102: =J26+J45+J64+J83 -> 188542.92 | L102: =L26+L45+L64+L83 -> 216716 | M102: 2.02 | N102: =N26+N45+N64+N83 -> 437766.32 | P102: 626309.24
B103: April | D103: 158716 | E103: 3.66 | F103: 580900.56 | H103: =H27+H46+H65+H84 -> 233736.6055 | I103: 0.87 | J103: =J27+J46+J65+J84 -> 203350.8468 | L103: =L27+L46+L65+L84 -> 233736.6055 | M103: 2.02 | N103: =N27+N46+N65+N84 -> 472147.9432 | P103: 675498.79
B104: May | D104: 175477 | E104: 3.66 | F104: 642245.82 | H104: =H28+H47+H66+H85 -> 249333 | I104: 0.87 | J104: =J28+J47+J66+J85 -> 216919.71 | L104: =L28+L47+L66+L85 -> 249333 | M104: 2.02 | N104: =N28+N47+N66+N85 -> 503652.66 | P104: 720572.37
B105: June | D105: 194917 | E105: 3.66 | F105: 713396.22 | H105: =H29+H48+H67+H86 -> 209985 | I105: 0.87 | J105: =J29+J48+J67+J86 -> 182686.95 | L105: =L29+L48+L67+L86 -> 209985 | M105: 2.02 | N105: =N29+N48+N67+N86 -> 424169.7 | P105: 606856.65
B106: July | D106: 213024 | E106: 3.66 | F106: 779667.84 | H106: =H30+H49+H68+H87 -> 217295 | I106: 0.87 | J106: =J30+J49+J68+J87 -> 189046.65 | L106: =L30+L49+L68+L87 -> 217295 | M106: 2.02 | N106: =N30+N49+N68+N87 -> 438935.9 | P106: 627982.55
B107: August | D107: 220213 | E107: 3.66 | F107: 805979.58 | H107: =H31+H50+H69+H88 -> 223709 | I107: 0.87 | J107: =J31+J50+J69+J88 -> 194626.83 | L107: =L31+L50+L69+L88 -> 223709 | M107: 2.02 | N107: =N31+N50+N69+N88 -> 451892.18 | P107: 646519.01
B108: September | D108: 220438 | E108: 3.66 | F108: 806803.08 | H108: =H32+H51+H70+H89 -> 231690 | I108: 0.87 | J108: =J32+J51+J70+J89 -> 201570.3 | L108: =L32+L51+L70+L89 -> 231690 | M108: 2.02 | N108: =N32+N51+N70+N89 -> 468013.8 | P108: 669584.1
B109: October | D109: 152350 | E109: 3.66 | F109: 557601 | H109: =H33+H52+H71+H90 -> 152350 | I109: 0.87 | J109: =J33+J52+J71+J90 -> 132544.5 | L109: =L33+L52+L71+L90 -> 152350 | M109: 2.02 | N109: =N33+N52+N71+N90 -> 307747 | P109: 440291.5
B110: November | D110: 166620 | E110: 3.66 | F110: 609829.2 | H110: =H34+H53+H72+H91 -> 183436 | I110: 0.87 | J110: =J34+J53+J72+J91 -> 159589.32 | L110: =L34+L53+L72+L91 -> 183436 | M110: 2.02 | N110: =N34+N53+N72+N91 -> 370540.72 | P110: 530130.04
B111: December | D111: 185788 | E111: 3.66 | F111: 679984.08 | H111: =H35+H54+H73+H92 -> 188131 | I111: 0.87 | J111: =J35+J54+J73+J92 -> 163673.97 | L111: =L35+L54+L73+L92 -> 188131 | M111: 2.02 | N111: =N35+N54+N73+N92 -> 380024.62 | P111: 543698.59
B113: Total | D113: =SUM(D100:D111) -> 2241234 | E113: =IF(D113<>0,F113/D113,0) -> 3.66 | F113: =SUM(F100:F111) -> 8202916.44 | H113: =SUM(H100:H111) -> 2512158.606 | I113: =IF(H113<>0,J113/H113,0) -> 0.87 | J113: =SUM(J100:J111) -> 2185577.987 | L113: =SUM(L100:L111) -> 2512158.606 | M113: =IF(L113<>0,N113/L113,0) -> 2.02 | N113: =SUM(N100:N111) -> 5074560.383 | P113: =SUM(P100:P111) -> 7260138.37
N115: Low Voltage Switchgear Credit (if applicable) | P115: ='5. UTRs and Sub-Transmission'!J75 -> 0
N117: Total including deduction for Low Voltage Switchgear Credit | P117: =P113+P115 -> 7260138.37

Sheet 9. RTSR Rates to Forecast
A13: The purpose of this sheet is to re-align the current RTS Network Rates to recover current wholesale network costs.
A15: Rate Class | B15: Rate Description | C15: Unit | D15: Current RTSR-Network | E15: Loss Adjusted Billed kWh | F15: Billed kW | G15: Billed Amount | H15: Billed Amount % | I15: Current Wholesale Billing | J15: Adjusted RTSR Network
A17: Residential | B17: RTSR - Network | C17: kWh | D17: 0.0074 | E17: 494671071.8 | G17: =ROUND(D17*E17, 2) -> 3660565.93 | H17: =G17/8034116.64 -> 0.4556276806 | I17: =H17*total_current_wholesale_network -> 3737475.791 | J17: =IF(ISERROR(I17/E17), 0, I17/E17) -> 0.007555476768
A18: General Service Less Than 50 kW | B18: RTSR - Network | C18: kWh | D18: 0.0069 | E18: 136687159.3 | G18: =ROUND(D18*E18, 2) -> 943141.4 | H18: =G18/8034116.64 -> 0.1173920472 | I18: =H18*total_current_wholesale_network -> 962957.1541 | J18: =IF(ISERROR(I18/E18), 0, I18/E18) -> 0.007044971588
A19: General Service 50 to 999 kW | B19: RTSR - Network | C19: kW | D19: 2.4961 | F19: 406106 | G19: =ROUND(D19*F19, 2) -> 1013681.19 | H19: =G19/8034116.64 -> 0.1261720778 | I19: =H19*total_current_wholesale_network -> 1034979.012 | J19: =IF(ISERROR(I19/F19), 0, I19/F19) -> 2.548544005
A20: General Service 50 to 999 kW - Interval Metered | B20: RTSR - Network | C20: kW | D20: 3.1993 | F20: 438263 | G20: =ROUND(D20*F20, 2) -> 1402134.82 | H20: =G20/8034116.64 -> 0.174522587 | I20: =H20*total_current_wholesale_network -> 1431594.198 | J20: =IF(ISERROR(I20/F20), 0, I20/F20) -> 3.266518501
A21: General Service 1,000 to 4,999 kW - Interval Meters | B21: RTSR - Network | C21: kW | D21: 3.1993 | F21: 200065 | G21: =ROUND(D21*F21, 2) -> 640067.95 | H21: =G21/8034116.64 -> 0.07966874003 | I21: =H21*total_current_wholesale_network -> 653516.0174 | J21: =IF(ISERROR(I21/F21), 0, I21/F21) -> 3.266518468
A22: Large Use > 5000 kW | B22: RTSR - Network | C22: kW | D22: 3.4089 | F22: 94958 | G22: =ROUND(D22*F22, 2) -> 323702.33 | H22: =G22/8034116.64 -> 0.0402909672 | I22: =H22*total_current_wholesale_network -> 330503.4372 | J22: =IF(ISERROR(I22/F22), 0, I22/F22) -> 3.480522307
A23: Unmetered Scattered Load | B23: RTSR - Network | C23: kWh | D23: 0.0069 | E23: 848752.2342 | G23: =ROUND(D23*E23, 2) -> 5856.39 | H23: =G23/8034116.64 -> 0.0007289401265 | I23: =H23*total_current_wholesale_network -> 5979.434948 | J23: =IF(ISERROR(I23/E23), 0, I23/E23) -> 0.007044971084
A24: Sentinel Lighting | B24: RTSR - Network | C24: kW | D24: 1.7217 | F24: 126 | G24: =ROUND(D24*F24, 2) -> 216.93 | H24: =G24/8034116.64 -> 2.700110164e-05 | I24: =H24*total_current_wholesale_network -> 221.4877806 | J24: =IF(ISERROR(I24/F24), 0, I24/F24) -> 1.757839528
A25: Street Lighting | B25: RTSR - Network | C25: kW | D25: 1.6925 | F25: 26440 | G25: =ROUND(D25*F25, 2) -> 44749.7 | H25: =G25/8034116.64 -> 0.005569958964 | I25: =H25*total_current_wholesale_network -> 45689.90796 | J25: =IF(ISERROR(I25/F25), 0, I25/F25) -> 1.728060059
A27: The purpose of this table is to re-align the current RTS Connection Rates to recover current wholesale connection costs.
A28: Rate Class | B28: Rate Description | C28: Unit | D28: Current RTSR-Connection | E28: Loss Adjusted Billed kWh | F28: Billed kW | G28: Billed Amount | H28: Billed Amount % | I28: Current Wholesale Billing | J28: Adjusted RTSR-Connection
A30: Residential | B30: RTSR - Connection | C30: kWh | D30: 0.0062 | E30: 494671071.8 | G30: =ROUND(D30*E30, 2) -> 3066960.65 | H30: =G30/6618959.43 -> 0.4633599409 | I30: =H30*Total_Current_Wholesale_Lineplus -> 3364057.286 | J30: =IF(ISERROR(I30/E30), 0, I30/E30) -> 0.006800594329
A31: General Service Less Than 50 kW | B31: RTSR - Connection | C31: kWh | D31: 0.0057 | E31: 136687159.3 | G31: =ROUND(D31*E31, 2) -> 779116.81 | H31: =G31/6618959.43 -> 0.1177098633 | I31: =H31*Total_Current_Wholesale_Lineplus -> 854589.8954 | J31: =IF(ISERROR(I31/E31), 0, I31/E31) -> 0.006252159307
A32: General Service 50 to 999 kW | B32: RTSR - Connection | C32: kW | D32: 2.0069 | F32: 406106 | G32: =ROUND(D32*F32, 2) -> 815014.13 | H32: =G32/6618959.43 -> 0.1231332717 | I32: =H32*Total_Current_Wholesale_Lineplus -> 893964.5906 | J32: =IF(ISERROR(I32/F32), 0, I32/F32) -> 2.201308502
A33: General Service 50 to 999 kW - Interval Metered | B33: RTSR - Connection | C33: kW | D33: 2.5494 | F33: 438263 | G33: =ROUND(D33*F33, 2) -> 1117307.69 | H33: =G33/6618959.43 -> 0.1688041303 | I33: =H33*Total_Current_Wholesale_Lineplus -> 1225541.343 | J33: =IF(ISERROR(I33/F33), 0, I33/F33) -> 2.796360503
A34: General Service 1,000 to 4,999 kW - Interval Meters | B34: RTSR - Connection | C34: kW | D34: 2.5494 | F34: 200065 | G34: =ROUND(D34*F34, 2) -> 510045.71 | H34: =G34/6618959.43 -> 0.07705829223 | I34: =H34*Total_Current_Wholesale_Lineplus -> 559453.8641 | J34: =IF(ISERROR(I34/F34), 0, I34/F34) -> 2.796360503
A35: Large Use > 5000 kW | B35: RTSR - Connection | C35: kW | D35: 2.7817 | F35: 94958 | G35: =ROUND(D35*F35, 2) -> 264144.67 | H35: =G35/6618959.43 -> 0.03990728041 | I35: =H35*Total_Current_Wholesale_Lineplus -> 289732.3778 | J35: =IF(ISERROR(I35/F35), 0, I35/F35) -> 3.051163438
A36: Unmetered Scattered Load | B36: RTSR - Connection | C36: kWh | D36: 0.0057 | E36: 848752.2342 | G36: =ROUND(D36*E36, 2) -> 4837.89 | H36: =G36/6618959.43 -> 0.000730913983 | I36: =H36*Total_Current_Wholesale_Lineplus -> 5306.536653 | J36: =IF(ISERROR(I36/E36), 0, I36/E36) -> 0.00625216222
A37: Sentinel Lighting | B37: RTSR - Connection | C37: kW | D37: 2.3559 | F37: 126 | G37: =ROUND(D37*F37, 2) -> 296.84 | H37: =G37/6618959.43 -> 4.484692845e-05 | I37: =H37*Total_Current_Wholesale_Lineplus -> 325.594906 | J37: =IF(ISERROR(I37/F37), 0, I37/F37) -> 2.584086556
A38: Street Lighting | B38: RTSR - Connection | C38: kW | D38: 2.316 | F38: 26440 | G38: =ROUND(D38*F38, 2) -> 61235.04 | H38: =G38/6618959.43 -> 0.00925146024 | I38: =H38*Total_Current_Wholesale_Lineplus -> 67166.88147 | J38: =IF(ISERROR(I38/F38), 0, I38/F38) -> 2.540351039
A40: The purpose of this table is to update the re-aligned RTS Network Rates to recover future wholesale network costs.
A41: Rate Class | B41: Rate Description | C41: Unit | D41: Adjusted RTSR-Network | E41: Loss Adjusted Billed kWh | F41: Billed kW | G41: Billed Amount | H41: Billed Amount % | I41: Current Wholesale Billing | J41: Proposed RTSR-Network
A43: Residential | B43: RTSR - Network | C43: kWh | D43: 0.007555476768 | E43: 494671071.8 | G43: =IF(ISERROR(D43*E43), 0, ROUND(D43*E43, 2)) -> 3737475.79 | H43: =G43/8202916.44 -> 0.4556276804 | I43: =H43*forecast_wholesale_network -> 3737475.79 | J43: =IF(ISERROR(I43/E43), 0, I43/E43) -> 0.007555476766
A44: General Service Less Than 50 kW | B44: RTSR - Network | C44: kWh | D44: 0.007044971588 | E44: 136687159.3 | G44: =IF(ISERROR(D44*E44), 0, ROUND(D44*E44, 2)) -> 962957.15 | H44: =G44/8202916.44 -> 0.1173920467 | I44: =H44*forecast_wholesale_network -> 962957.15 | J44: =IF(ISERROR(I44/E44), 0, I44/E44) -> 0.007044971558
A45: General Service 50 to 999 kW | B45: RTSR - Network | C45: kW | D45: 2.548544005 | F45: 406106 | G45: =ROUND(D45*F45, 2) -> 1034979.01 | H45: =G45/8202916.44 -> 0.1261720776 | I45: =H45*forecast_wholesale_network -> 1034979.01 | J45: =IF(ISERROR(I45/F45), 0, I45/F45) -> 2.548544001
A46: General Service 50 to 999 kW - Interval Metered | B46: RTSR - Network | C46: kW | D46: 3.266518501 | F46: 438263 | G46: =ROUND(D46*F46, 2) -> 1431594.2 | H46: =G46/8202916.44 -> 0.1745225872 | I46: =H46*forecast_wholesale_network -> 1431594.2 | J46: =IF(ISERROR(I46/F46), 0, I46/F46) -> 3.266518506
A47: General Service 1,000 to 4,999 kW - Interval Meters | B47: RTSR - Network | C47: kW | D47: 3.266518468 | F47: 200065 | G47: =ROUND(D47*F47, 2) -> 653516.02 | H47: =G47/8202916.44 -> 0.07966874035 | I47: =H47*forecast_wholesale_network -> 653516.02 | J47: =IF(ISERROR(I47/F47), 0, I47/F47) -> 3.266518481
A48: Large Use > 5000 kW | B48: RTSR - Network | C48: kW | D48: 3.480522307 | F48: 94958 | G48: =ROUND(D48*F48, 2) -> 330503.44 | H48: =G48/8202916.44 -> 0.04029096754 | I48: =H48*forecast_wholesale_network -> 330503.44 | J48: =IF(ISERROR(I48/F48), 0, I48/F48) -> 3.480522336
A49: Unmetered Scattered Load | B49: RTSR - Network | C49: kWh | D49: 0.007044971084 | E49: 848752.2342 | G49: =IF(ISERROR(D49*E49), 0, ROUND(D49*E49, 2)) -> 5979.43 | H49: =G49/8202916.44 -> 0.0007289395234 | I49: =H49*forecast_wholesale_network -> 5979.43 | J49: =IF(ISERROR(I49/E49), 0, I49/E49) -> 0.007044965255
A50: Sentinel Lighting | B50: RTSR - Network | C50: kW | D50: 1.757839528 | F50: 126 | G50: =ROUND(D50*F50, 2) -> 221.49 | H50: =G50/8202916.44 -> 2.700137221e-05 | I50: =H50*forecast_wholesale_network -> 221.49 | J50: =IF(ISERROR(I50/F50), 0, I50/F50) -> 1.757857143
A51: Street Lighting | B51: RTSR - Network | C51: kW | D51: 1.728060059 | F51: 26440 | G51: =ROUND(D51*F51, 2) -> 45689.91 | H51: =G51/8202916.44 -> 0.005569959213 | I51: =H51*forecast_wholesale_network -> 45689.91 | J51: =IF(ISERROR(I51/F51), 0, I51/F51) -> 1.728060136
A53: The purpose of this table is to update the re-aligned RTS Connection Rates to recover future wholesale connection costs.
A54: Rate Class | B54: Rate Description | C54: Unit | D54: Adjusted RTSR-Connection | E54: Loss Adjusted Billed kWh | F54: Billed kW | G54: Billed Amount | H54: Billed Amount % | I54: Current Wholesale Billing | J54: Proposed RTSR-Connection
A56: Residential | B56: RTSR - Connection | C56: kWh | D56: 0.006800594329 | E56: 494671071.8 | G56: =ROUND(D56*E56, 2) -> 3364057.29 | H56: =G56/7260138.37 -> 0.4633599414 | I56: =H56*forecast_wholesale_lineplus -> 3364057.29 | J56: =IF(ISERROR(I56/E56), 0, I56/E56) -> 0.006800594337
A57: General Service Less Than 50 kW | B57: RTSR - Connection | C57: kWh | D57: 0.006252159307 | E57: 136687159.3 | G57: =ROUND(D57*E57, 2) -> 854589.9 | H57: =G57/7260138.37 -> 0.117709864 | I57: =H57*forecast_wholesale_lineplus -> 854589.9 | J57: =IF(ISERROR(I57/E57), 0, I57/E57) -> 0.00625215934
A58: General Service 50 to 999 kW | B58: RTSR - Connection | C58: kW | D58: 2.201308502 | F58: 406106 | G58: =ROUND(D58*F58, 2) -> 893964.59 | H58: =G58/7260138.37 -> 0.1231332716 | I58: =H58*forecast_wholesale_lineplus -> 893964.59 | J58: =IF(ISERROR(I58/F58), 0, I58/F58) -> 2.201308501
A59: General Service 50 to 999 kW - Interval Metered | B59: RTSR - Connection | C59: kW | D59: 2.796360503 | F59: 438263 | G59: =ROUND(D59*F59, 2) -> 1225541.34 | H59: =G59/7260138.37 -> 0.1688041298 | I59: =H59*forecast_wholesale_lineplus -> 1225541.34 | J59: =IF(ISERROR(I59/F59), 0, I59/F59) -> 2.796360496
A60: General Service 1,000 to 4,999 kW - Interval Meters | B60: RTSR - Connection | C60: kW | D60: 2.796360503 | F60: 200065 | G60: =ROUND(D60*F60, 2) -> 559453.86 | H60: =G60/7260138.37 -> 0.07705829166 | I60: =H60*forecast_wholesale_lineplus -> 559453.86 | J60: =IF(ISERROR(I60/F60), 0, I60/F60) -> 2.796360483
A61: Large Use > 5000 kW | B61: RTSR - Connection | C61: kW | D61: 3.051163438 | F61: 94958 | G61: =ROUND(D61*F61, 2) -> 289732.38 | H61: =G61/7260138.37 -> 0.03990728072 | I61: =H61*forecast_wholesale_lineplus -> 289732.38 | J61: =IF(ISERROR(I61/F61), 0, I61/F61) -> 3.051163462
A62: Unmetered Scattered Load | B62: RTSR - Connection | C62: kWh | D62: 0.00625216222 | E62: 848752.2342 | G62: =ROUND(D62*E62, 2) -> 5306.54 | H62: =G62/7260138.37 -> 0.000730914444 | I62: =H62*forecast_wholesale_lineplus -> 5306.54 | J62: =IF(ISERROR(I62/E62), 0, I62/E62) -> 0.006252166164
A63: Sentinel Lighting | B63: RTSR - Connection | C63: kW | D63: 2.584086556 | F63: 126 | G63: =ROUND(D63*F63, 2) -> 325.59 | H63: =G63/7260138.37 -> 4.48462527e-05 | I63: =H63*forecast_wholesale_lineplus -> 325.59 | J63: =IF(ISERROR(I63/F63), 0, I63/F63) -> 2.584047619
A64: Street Lighting | B64: RTSR - Connection | C64: kW | D64: 2.540351039 | F64: 26440 | G64: =ROUND(D64*F64, 2) -> 67166.88 | H64: =G64/7260138.37 -> 0.009251460038 | I64: =H64*forecast_wholesale_lineplus -> 67166.88 | J64: =IF(ISERROR(I64/F64), 0, I64/F64) -> 2.540350983

Sheet hidden1 (hidden)
A1: =IF('3. Rate Classes'!L17=1, '3. Rate Classes'!C17, "") -> Residential | B1: 1
A2: =IF('3. Rate Classes'!L18=1, '3. Rate Classes'!C18, "") -> General Service Less Than 50 kW | B2: 2
A3: =IF('3. Rate Classes'!L19=1, '3. Rate Classes'!C19, "") -> General Service 50 to 999 kW | B3: 3
A4: =IF('3. Rate Classes'!L20=1, '3. Rate Classes'!C20, "") -> General Service 50 to 999 kW - Interval Metered | B4: 4
A5: =IF('3. Rate Classes'!L21=1, '3. Rate Classes'!C21, "") -> General Service 1,000 to 4,999 kW - Interval Meters | B5: 5
A6: =IF('3. Rate Classes'!L22=1, '3. Rate Classes'!C22, "") -> Large Use > 5000 kW | B6: 6
A7: =IF('3. Rate Classes'!L23=1, '3. Rate Classes'!C23, "") -> Unmetered Scattered Load | B7: 7
A8: =IF('3. Rate Classes'!L24=1, '3. Rate Classes'!C24, "") -> Sentinel Lighting | B8: 8
A9: =IF('3. Rate Classes'!L25=1, '3. Rate Classes'!C25, "") -> Street Lighting | B9: 9
A10: =IF('3. Rate Classes'!L26=1, '3. Rate Classes'!C26, "") ->  | B10: 10
A11: =IF('3. Rate Classes'!L27=1, '3. Rate Classes'!C27, "") ->  | B11: 11
A12: =IF('3. Rate Classes'!L28=1, '3. Rate Classes'!C28, "") ->  | B12: 12
A13: =IF('3. Rate Classes'!L29=1, '3. Rate Classes'!C29, "") ->  | B13: 13
A14: =IF('3. Rate Classes'!L30=1, '3. Rate Classes'!C30, "") ->  | B14: 14
A15: =IF('3. Rate Classes'!L31=1, '3. Rate Classes'!C31, "") ->  | B15: 15
A16: =IF('3. Rate Classes'!L32=1, '3. Rate Classes'!C32, "") ->  | B16: 16
A17: =IF('3. Rate Classes'!L33=1, '3. Rate Classes'!C33, "") ->  | B17: 17
A18: =IF('3. Rate Classes'!L34=1, '3. Rate Classes'!C34, "") ->  | B18: 18
A19: =IF('3. Rate Classes'!L35=1, '3. Rate Classes'!C35, "") ->  | B19: 19
A20: =IF('3. Rate Classes'!L36=1, '3. Rate Classes'!C36, "") ->  | B20: 20
A21: =IF('3. Rate Classes'!L37=1, '3. Rate Classes'!C37, "") ->  | B21: 21
A22: =IF('3. Rate Classes'!L38=1, '3. Rate Classes'!C38, "") ->  | B22: 22
